Workbook

Sheet 每月工程师绩效统计报表（样表）
A1: 绩效核算月份 | B1: 我方文号 | C1: 申请类型 | D1: 业务类型 | E1: 备注（填表注意事项） | F1: 处理事项 | G1: 案件阶段 | H1: 案件系数 | I1: 处理事项系数 | J1: 前一次OA处理事项系数 | K1: 前一次OA处理人 | L1: 处理人等级 | M1: 点数 | N1: 系数 | O1: 绩效 | P1: 处理人 | Q1: 核稿人 | R1: 客户名称 | S1: 申请人 | T1: 处理事项完成日 | U1: 定稿日 | V1: 返稿日 | W1: 案件类型 | X1: 案件状态 | Y1: 处理事项备注 | Z1: 处理状态 | AA1: 案件名称 | AB1: 委案日期 | AC1: 客户期限 | AD1: 内部期限 | AE1: 初稿日 | AF1: 备注（发文严重超期是否属客观原因，若为否，请填写原因） | AG1: 超期天数(返稿日-客户期限） | AH1: 是否降系数 | AI1: 案件备注
A2: 2021.01 | B2: PADE1510724 | C2: 发明 | D2: PCT国家阶段 | F2: 处理审查意见 | H2: B | I2: 形式 | L2: B3级 | M2: 0.3 | P2: 吉润 | Q2: 孔丽霞 | R2: 深圳市华星光电技术有限公司 | S2: TCL华星光电技术有限公司 | T2: 2021-01-21 | U2: 2021-01-11 | V2: 2021-01-08 | W2: 专利 | X2: 一通 | Y2: 1OA，审查员认为权5应该被视为主要独立权力要求，权1是权5，6和9的结合，建议删除。权5和权11有授权前景，权11需要把重复的特征删除。除此之外还有一些形式缺陷和修改意见，请见第6和第7点。分析+答辩 | Z2: 完成 | AA2: 一种液晶显示装置及其背光模组 | AB2: 2015-04-10 | AD2: 2021-01-03 | AE2: 2021-01-07 | AI2: 由PACN1212109 新增开. ODD
A3: 2021.01 | B3: PAUS2016239 | C3: 发明 | D3: PCT国家阶段 | E3: 按字数算：中-英：20450字 | F3: 新申请 | H3: B | I3: 实质 | L3: B3级 | M3: =20450/1000*0.16 -> 3.272 | N3: 0.2 | O3: =M3*N3 -> 0.6544 | P3: 吉润 | Q3: 李申 | R3: OPPO广东移动通信有限公司 | S3: OPPO广东移动通信有限公司 | T3: 2021-01-27 | U3: 2021-01-20 | V3: 2020-12-26 | W3: 专利 | X3: 已递交 | Y3: 延期1次，中翻英，翻译PCT/CN2019/088165，20450字 | Z3: 完成 | AA3: 主耳机切换方法及相关设备 | AB3: 2020-11-08 | AC3: 2020-12-14 | AE3: 2020-12-04
A4: 2021.01 | B4: PAUS1810436-W | C4: 发明 | D4: PCT国家阶段 | F4: Non Final Action | H4: B | I4: 实质 | L4: B3级 | M4: 1.5 | P4: 吉润 | Q4: 李建民 | R4: 深圳市华星光电技术有限公司 | S4: 惠州市华星光电技术有限公司 | T4: 2021-01-13 | U4: 2021-01-14 | V4: 2021-01-13 | W4: 专利 | X4: Final Action | Y4: 3OA，有核准项，分析+答辩 | Z4: 完成 | AA4: 背光模组、液晶显示器以及拼接显示装置 | AB4: 2018-01-31 | AC4: 2020-12-22 | AD4: 2020-11-28 | AE4: 2021-01-12 | AI4: 由WOCN1810435 新增开. 由PACN1810409 新增开. 模组研发处-->模组技术开发部
A5: 2021.01 | B5: PAEPO1712687-结案 | C5: 发明 | D5: PCT国家阶段 | E5: 结案 | F5: 涉外结案 | H5: B | L5: B3级 | M5: 0.1 | P5: 吉润 | Q5: 孔丽霞 | R5: 惠州TCL移动通信有限公司 | S5: 捷开通讯（深圳）有限公司 | T5: 2021-01-15 | V5: 2021-01-11 | W5: 专利 | X5: 结案 | Y5: 欧洲核驳通知，建议结案 | Z5: 结案 | AA5: 一种移动电源的语音提示系统、方法及移动电源 | AB5: 2017-06-21 | AC5: 2020-12-15 | AD5: 2020-11-15 | AE5: 2021-01-11 | AI5: 审查中结案
A6: 2021.01 | B6: PAUS2037085 | C6: 外观设计 | D6: 普通新申请 | F6: 新申请 | L6: B3级 | M6: 0.2 | P6: 吉润 | Q6: 孔丽霞 | R6: 深圳市万普拉斯科技有限公司 | S6: 深圳市万普拉斯科技有限公司 | T6: 2021-01-08 | U6: 2020-12-23 | V6: 2020-12-18 | W6: 专利 | X6: 已递交 | Z6: 完成 | AA6: 手机 | AB6: 2020-12-03 | AC6: 2021-01-02 | AD6: 2020-12-17 | AE6: 2020-12-17
A7: 2021.01 | B7: PCTCN2011115 | C7: 发明 | D7: PCT国家阶段 | F7: 主动补正 | L7: B3级 | M7: 0 | P7: 吉润 | Q7: 刘桂兰 | R7: OLARTEMOURE | S7: AGP美洲股份公司 | T7: 2021-01-13 | U7: 2021-01-13T09:48:47.223 | V7: 2020-09-24 | W7: 专利 | X7: 实审 | Y7: 客户提供了英文稿 | Z7: 完成 | AA7: 具有高强度和优异光学质量且带薄嵌体遮蔽物的夹层玻璃 | AB7: 2020-03-24 | AD7: 2020-10-02 | AE7: 2020-09-23
A8: 2021.01 | B8: PAEPO1916768 | C8: 发明 | D8: PCT国家阶段 | F8: 欧洲案答辩 | H8: B | I8: 实质 | L8: B3级 | M8: 1.5 | P8: 吉润 | Q8: 李建民 | R8: 惠州TCL移动通信有限公司 | S8: 惠州TCL移动通信有限公司 | T8: 2021-01-22 | U8: 2021-01-20 | V8: 2021-01-12 | W8: 专利 | X8: 公开 | Y8: 欧洲检索报告，3种答辩方案，选择方案3，答辩 | Z8: 完成 | AA8: 一种基于B41频段的全频段射频装置及通信终端 | AB8: 2019-11-09 | AD8: 2020-09-21 | AE8: 2021-01-11
A9: 2021.01 | B9: PAUS2037368 | C9: 外观设计 | D9: 普通新申请 | F9: 新申请 | L9: B3级 | M9: 0.2 | P9: 吉润 | Q9: 孔丽霞 | R9: 深圳麦克韦尔股份有限公司 | S9: 深圳麦克韦尔科技有限公司 | T9: 2021-01-04 | U9: 2020-12-31 | V9: 2020-12-22 | W9: 专利 | X9: 已递交 | Z9: 完成 | AA9: 电子雾化装置 | AB9: 2020-12-15 | AC9: 2021-01-04 | AD9: 2020-10-19 | AE9: 2020-12-22 | AI9: 由PACN2034034 新增开.
A10: 2021.01 | B10: PAUS1931293 | C10: 外观设计 | D10: 普通新申请 | F10: Non Final Action | L10: B3级 | M10: 0.2 | N10: 0.2 | O10: =M10*N10 -> 0.04 | P10: 吉润 | Q10: 李莉 | R10: 惠州TCL移动通信有限公司 | S10: 惠州TCL移动通信有限公司 | T10: 2021-01-25 | U10: 2021-01-25 | V10: 2021-01-25 | W10: 专利 | X10: Non Final Action | Y10: 2OA，提TD | Z10: 完成 | AA10: 外折叠手机 | AB10: 2019-03-21 | AC10: 2020-12-30 | AD10: 2020-12-02 | AE10: 2021-01-22 | AI10: 由PACN1931292 新增开.
A11: 2021.01 | B11: PAUS2016263 | C11: 发明 | D11: PCT国家阶段 | E11: 按字数算：中-英：22123字 | F11: 新申请 | H11: B | L11: B3级 | M11: =22123/1000*0.16 -> 3.53968 | P11: 吉润 | Q11: 程利 | R11: OPPO广东移动通信有限公司 | S11: OPPO广东移动通信有限公司 | T11: 2021-01-25 | U11: 2021-01-19 | V11: 2020-12-14 | W11: 专利 | X11: 已递交 | Y11: 延期1次，中翻英，翻译PCT/CN2019/088164，22123字 | Z11: 完成 | AA11: 无线耳机音量控制方法、无线耳机及移动终端 | AB11: 2020-11-08 | AC11: 2020-12-14 | AE11: 2020-12-02
A12: 2021.01 | B12: PCTCN2011116 | C12: 发明 | D12: PCT国家阶段 | F12: 主动补正 | L12: B3级 | M12: 0 | P12: 吉润 | Q12: 刘桂兰 | R12: OLARTEMOURE | S12: AGP美洲股份公司 | T12: 2021-01-13 | U12: 2021-01-13T09:49:34.930 | V12: 2020-09-22 | W12: 专利 | X12: 实审 | Y12: 权利要求补正 | Z12: 完成 | AA12: 具优异强度和光学质量且带嵌体遮蔽物的夹层玻璃 | AB12: 2020-03-24 | AD12: 2020-09-26 | AE12: 2020-09-18
A13: 2021.01 | B13: PACN1714733 | C13: 发明 | D13: 普通新申请 | F13: 处理审查意见 | G13: 二通 | H13: B | J13: 实质 | K13: 吉润 | L13: B3级 | M13: 0.2 | P13: 吉润 | Q13: 程利 | R13: OPPO广东移动通信有限公司 | S13: 广东欧珀移动通信有限公司 | T13: 2021-01-08 | U13: 2021-01-08T15:22:37.523 | V13: 2021-01-07T18:29:58.517 | W13: 专利 | X13: 二通 | Z13: 完成 | AA13: 一种摄像头组件、移动终端及其摄像头组件的控制方法 | AB13: 2017-11-09 | AC13: 2020-12-16 | AD13: 2020-12-16 | AE13: 2021-01-07T16:04:11.770 | AI13: 专利挖掘项目编号：MP20171110
A14: 2021.01 | B14: PAEPO1910412 | C14: 发明 | D14: 普通新申请 | F14: 欧洲案答辩 | H14: A | I14: 实质 | L14: B3级 | M14: 1.5 | P14: 吉润 | R14: OPPO广东移动通信有限公司 | S14: OPPO广东移动通信有限公司 | T14: 2021-01-20 | U14: 2021-01-08 | V14: 2020-12-18 | W14: 专利 | X14: 已递交 | Y14: 欧洲核驳通知，答辩 | Z14: 完成 | AA14: 终端显示屏组件及移动终端 | AB14: 2019-02-14 | AC14: 2020-12-17 | AE14: 2020-12-17 | AI14: 欧美印仅撰写
A15: 2021.01 | B15: PAIN2034298 | C15: 外观设计 | D15: 普通新申请 | F15: 处理审查意见 | L15: B3级 | M15: 0.2 | P15: 吉润 | Q15: 孔丽霞 | R15: 深圳市万普拉斯科技有限公司 | S15: 深圳市万普拉斯科技有限公司 | T15: 2021-01-04 | U15: 2020-12-31 | V15: 2020-12-23 | W15: 专利 | X15: 一通 | Z15: 完成 | AA15: 一加BASE-DLED智能电视外观设计专利 | AB15: 2020-08-10 | AC15: 2020-12-23 | AE15: 2020-12-23
A16: 2021.01 | B16: PAGB1711923 | C16: 发明 | D16: PCT国家阶段 | F16: 处理审查意见 | I16: 形式 | L16: B3级 | M16: 0.2 | P16: 吉润 | Q16: 程利 | R16: 深圳市华星光电技术有限公司 | S16: TCL华星光电技术有限公司,武汉华星光电技术有限公司 | T16: 2021-01-15 | U16: 2021-01-14 | V16: 2021-01-13 | W16: 专利 | X16: 一通 | Y16: 1OA，分析+答辩 | Z16: 完成 | AA16: 一种GOA电路及液晶显示器 | AB16: 2017-05-03 | AD16: 2021-01-04 | AE16: 2021-01-12 | AI16: 由WOCN1510057-ZX 新增开. 研发副总经理-->产品开发 至少有一项权利要求具有创造性
A17: 2021.01 | B17: PAUS2037000 | C17: 外观设计 | D17: 普通新申请 | F17: 新申请 | L17: B3级 | M17: 0.2 | P17: 吉润 | Q17: 孔丽霞 | R17: 深圳麦克韦尔股份有限公司 | S17: 深圳麦克韦尔科技有限公司 | T17: 2021-01-04 | U17: 2020-12-30 | V17: 2020-12-30 | W17: 专利 | X17: 已递交 | Z17: 完成 | AA17: 电子雾化器吸嘴（玻璃） | AB17: 2020-12-02 | AC17: 2020-12-22 | AD17: 2020-12-15 | AE17: 2020-12-29 | AI17: 由PACN2032755 新增开.
A18: 2021.01 | B18: WOCN2017232 | C18: 发明 | D18: PCT国际阶段 | E18: 按ca接续案计算 | F18: 新申请 | H18: B | L18: B3级 | M18: 0.5 | P18: 吉润 | Q18: 孔丽霞 | R18: 理邦精密仪器股份有限公司 | S18: 深圳市理邦精密仪器股份有限公司 | T18: 2021-01-22 | U18: 2021-01-22 | V18: 2021-01-19 | W18: 专利 | X18: 已递交 | Y18: 以美国临时申请交英文PCT(客户说权要有问题，需要重新架构布局) | Z18: 完成 | AA18: SYSTEMS AND METHODS FOR AUTOMATICALLY ADJUSTING DISPLAY SYSTEM USING USER TRACKING | AB18: 2020-12-09 | AD18: 2020-12-23 | AE18: 2021-01-19 | AI18: 由PAUS2010495-临时申请 新增开. 临时申请案
A19: 2021.01 | B19: PADE1510686 | C19: 发明 | D19: PCT国家阶段 | E19: 中-德：11236字 | F19: 翻译 | J19: 实质 | K19: 吉润 | L19: B3级 | M19: =11236/1000*0.18 -> 2.02248 | P19: 吉润 | Q19: 孔丽霞 | R19: 深圳市华星光电技术有限公司 | S19: TCL华星光电技术有限公司 | T19: 2021-01-19 | W19: 专利 | X19: 一通 | Y19: OA中提到，PCT翻译不准确需要重新翻译 | Z19: 完成 | AA19: 一种阵列基板、PSVA型液晶显示面板及其制作方法 | AB19: 2012-08-16 | AI19: ACD
A20: 2021.01 | B20: PADE1510725 | C20: 发明 | D20: PCT国家阶段 | F20: 处理审查意见 | I20: 形式 | L20: B3级 | M20: 0.3 | P20: 吉润 | Q20: 孔丽霞 | R20: 深圳市华星光电技术有限公司 | S20: TCL华星光电技术有限公司 | T20: 2021-01-21 | U20: 2021-01-11 | V20: 2021-01-08 | W20: 专利 | X20: 一通 | Y20: 1OA 审查员认为权6是主要独立权利要求，权1应该删除。权6和15被认为没有创造性。但是权8-12和14没有找到相关对比文件。除此之外还有一些形式缺陷。在审查意见的第7点审查员给了修改建议，如果克服不清楚的缺陷，权8与9的结合，以及权8与11的结合有授权前景。分析+答辩 | Z20: 完成 | AA20: 背光模组及液晶显示装置 | AB20: 2015-04-10 | AD20: 2021-01-04 | AE20: 2021-01-08 | AI20: 由PACN1212066 新增开. ME
A21: 2021.01 | B21: PCTCN2011118 | C21: 发明 | D21: PCT国家阶段 | F21: 主动补正 | L21: B3级 | M21: 0 | P21: 吉润 | Q21: 刘桂兰 | R21: OLARTEMOURE | S21: AGP美洲股份公司 | T21: 2021-01-12 | U21: 2021-01-12 | V21: 2020-09-24 | W21: 专利 | X21: 实审 | Y21: 客户提供了英文稿 | Z21: 完成 | AA21: 具优异强度和光学质量且带印刷遮蔽物的夹层玻璃 | AB21: 2020-03-24 | AD21: 2020-10-02 | AE21: 2020-09-23
A22: 2021.01 | B22: PADE1510723 | C22: 发明 | D22: PCT国家阶段 | F22: 处理审查意见 | I22: 形式 | L22: B3级 | M22: 0.3 | P22: 吉润 | Q22: 程利 | R22: 深圳市华星光电技术有限公司 | S22: TCL华星光电技术有限公司 | T22: 2021-01-20 | U22: 2021-01-08 | V22: 2021-01-07 | W22: 专利 | X22: 一通 | Y22: 1OA，审查员认为权1有授权前景，但是需要一些修改，修改意见在审查意见书的第3，4页。除此之外还有一些形式缺陷。比如权6-8应当删除。分析+答辩 | Z22: 完成 | AA22: 一种阵列基板及液晶显示装置 | AB22: 2015-04-10 | AD22: 2020-12-29 | AE22: 2021-01-06 | AI22: 由PACN1211758 新增开. ACD
A23: 2021.01 | B23: PAUS2016246 | C23: 发明 | D23: PCT国家阶段 | E23: 发文超一个月 | F23: 新申请 | H23: B | L23: B3级 | M23: 1.7 | P23: 吉润 | Q23: 孔丽霞 | R23: OPPO广东移动通信有限公司 | S23: OPPO广东移动通信有限公司 | V23: 2020-12-11 | W23: 专利 | X23: 未递交 | Z23: 外部审核 | AA23: 接近传感器及电子装置 | AB23: 2020-11-08 | AC23: 2020-12-14 | AE23: 2020-12-08
A24: 2021.01 | B24: PAUS2016257 | C24: 发明 | D24: PCT国家阶段 | E24: 按字数算：中-英：15771子，发文超一个月 | F24: 新申请 | H24: B | L24: B3级 | M24: =15771/1000*0.16 -> 2.52336 | P24: 吉润 | Q24: 程利 | R24: OPPO广东移动通信有限公司 | S24: OPPO广东移动通信有限公司 | V24: 2020-12-23 | W24: 专利 | X24: 未递交 | Y24: 发明人看稿联系人：田毅，延期2次 | Z24: 外部审核 | AA24: 三维模型处理方法、装置、电子设备及可读存储介质 | AB24: 2020-11-08 | AC24: 2020-12-25 | AE24: 2020-12-22
A25: 2021.01 | B25: PAEPO1914933 | C25: 发明 | D25: 普通新申请 | E25: 12月已完成，未计 | F25: 欧洲案答辩 | H25: B | I25: 实质 | L25: B3级 | M25: 1.5 | P25: 吉润 | Q25: 程利 | R25: OPPO广东移动通信有限公司 | S25: OPPO广东移动通信有限公司
A26: 2021.01 | B26: PADE1510686 | C26: 发明 | D26: PCT国家阶段 | E26: 递交中 | F26: 处理审查意见 | H26: B | I26: 实质 | L26: B3级 | M26: 1.6 | P26: 吉润 | Q26: 孔丽霞 | R26: 深圳市华星光电技术有限公司 | S26: TCL华星光电技术有限公司 | T26: 2021-01-19 | V26: 2021-01-19
A27: 2021.01 | B27: PADE1510736 | C27: 发明 | D27: PCT国家阶段 | E27: 递交中 | F27: 处理审查意见 | H27: B | I27: 形式 | L27: B3级 | M27: 0.3 | P27: 吉润 | Q27: 程利 | R27: 深圳市华星光电技术有限公司 | S27: TCL华星光电技术有限公司 | T27: 2021-01-12 | V27: 2021-01-12
A28: 2021.01 | B28: PADE1413545 | C28: 发明 | D28: PCT国家阶段 | E28: 递交中 | F28: 处理审查意见 | H28: B | I28: 实质 | L28: B3级 | M28: 1.6 | P28: 吉润 | Q28: 程利 | R28: 深圳市华星光电技术有限公司 | S28: TCL华星光电技术有限公司 | T28: 2021-01-27 | V28: 2021-01-27
A29: 2021.01 | B29: PAEPO1815944 | C29: 发明 | D29: 普通新申请 | E29: 递交中 | F29: 欧洲案答辩 | H29: A | I29: 实质 | L29: B3级 | M29: 1.5 | P29: 吉润 | Q29: 程利 | R29: OPPO广东移动通信有限公司 | S29: OPPO广东移动通信有限公司
A30: 2021.01 | B30: PAEPO2014785 | C30: 发明 | D30: 普通新申请 | E30: 与PAUS2014784同套，递交中 | F30: 新申请 | H30: B | L30: B3级 | M30: 0.2 | P30: 吉润 | Q30: 程利 | R30: OPPO广东移动通信有限公司 | S30: OPPO广东移动通信有限公司 | T30: 2021-02-01 | V30: 2021-01-12
A31: 2021.01 | B31: PAGB1711449 | C31: 发明 | D31: 普通新申请 | E31: 递交中 | F31: 处理审查意见 | H31: B | I31: 实质 | L31: B3级 | M31: 1.5 | P31: 吉润 | Q31: 程利 | R31: 深圳市华星光电技术有限公司 | S31: TCL华星光电技术有限公司,武汉华星光电技术有限公司 | T31: 2021-01-28 | V31: 2021-01-28
A32: 2021.01 | B32: PACN2011516 | C32: 实用新型 | D32: 普通新申请 | E32: 国内新申请（外审后暂停按70%比例计算）+英中翻译4151字 | F32: 新申请 | H32: B | L32: B3级 | M32: =1*0.7 -> 0.7 | P32: 吉润 | Q32: 李莉 | R32: APP印尼公司 | S32: APP印尼公司 | V32: 2020-05-02 | AB32: 2020-04-15 | AC32: 2020-05-15 | AG32: =V32-AC32 -> -13
A33: 2021.01 | B33: PACN2011516 | C33: 发明 | D33: 普通新申请 | E33: 英中翻译4151字 | F33: 新申请 | H33: B | L33: B3级 | M33: =4151/1000*0.1 -> 0.4151 | N33: 0.2 | O33: =M33*N33 -> 0.08302 | P33: 吉润 | Q33: 李莉 | R33: APP印尼公司 | S33: APP印尼公司 | V33: 2020-05-02
A34: 2021.01 | B34: PAUS2014614 | C34: 发明 | D34: 普通新申请 | F34: 新申请 | H34: B | L34: A1级 | M34: 1.7 | P34: 刘桂兰 | R34: OPPO广东移动通信有限公司 | S34: OPPO广东移动通信有限公司 | T34: 2021-01-13 | U34: 2021-01-08 | V34: 2020-10-09 | W34: 专利 | X34: 已递交 | Y34: 中翻英，翻译202010037378.4 ，10464字 | Z34: 完成 | AA34: 无线充电座 | AB34: 2020-08-21 | AC34: 2020-09-30 | AE34: 2020-10-09
A35: 2021.01 | B35: PAEPO2014616 | C35: 发明 | D35: 普通新申请 | E35: PAUS2014614的同族 | F35: 新申请 | L35: A1级 | M35: 0.2 | P35: 刘桂兰 | R35: OPPO广东移动通信有限公司 | S35: OPPO广东移动通信有限公司 | T35: 2021-01-13 | U35: 2021-01-11 | V35: 2021-01-11 | W35: 专利 | X35: 已递交 | Z35: 完成 | AA35: 无线充电座 | AB35: 2020-08-21 | AC35: 2021-01-11 | AE35: 2021-01-11
A36: 2021.01 | B36: PAIN1815948 | C36: 发明 | D36: 普通新申请 | F36: 处理审查意见 | H36: B | I36: 实质 | L36: A1级 | M36: 1.5 | P36: 刘桂兰 | R36: OPPO广东移动通信有限公司 | S36: OPPO广东移动通信有限公司 | T36: 2021-01-08 | U36: 2021-01-05 | V36: 2020-11-16 | W36: 专利 | X36: 一通 | Y36: 1OA，延期1次，答辩。无单一性问题 | Z36: 完成 | AA36: 显示屏、终端显示屏组件及移动终端 | AB36: 2018-11-23 | AC36: 2020-11-16 | AE36: 2020-11-16
A37: 2021.01 | B37: PAIN1815948 | C37: 发明 | D37: 普通新申请 | E37: 请款 | F37: Form 3-8(2) | J37: 实质 | K37: 刘桂兰 | L37: A1级 | M37: 0.1 | P37: 刘桂兰 | R37: OPPO广东移动通信有限公司 | S37: OPPO广东移动通信有限公司 | T37: 2021-01-08 | U37: 2021-01-04 | V37: 2020-12-31 | W37: 专利 | X37: 一通 | Z37: 完成 | AA37: 显示屏、终端显示屏组件及移动终端 | AB37: 2018-11-23 | AC37: 2020-11-09 | AE37: 2020-12-31
A38: 2021.01 | B38: PAIN1813102 | C38: 发明 | D38: 普通新申请 | E38: 请款 | F38: Form 3-8(2) | J38: 实质 | K38: 刘桂兰 | L38: A1级 | M38: 0.1 | P38: 刘桂兰 | R38: OPPO广东移动通信有限公司 | S38: OPPO广东移动通信有限公司 | T38: 2021-01-04 | U38: 2020-12-29 | V38: 2020-12-28 | W38: 专利 | X38: 一通 | Z38: 完成 | AA38: 一种摄像头组件、移动终端及其摄像头组件的控制方法 | AB38: 2018-07-20 | AC38: 2020-11-13 | AE38: 2020-12-28
A39: 2021.01 | B39: PAIN1813102 | C39: 发明 | D39: 普通新申请 | F39: 处理审查意见 | H39: B | I39: 实质 | L39: A1级 | M39: 1.5 | P39: 刘桂兰 | R39: OPPO广东移动通信有限公司 | S39: OPPO广东移动通信有限公司 | T39: 2021-01-04 | U39: 2020-12-31 | V39: 2020-11-23 | W39: 专利 | X39: 一通 | Y39: 1OA，延期1次，无单一性问题，答辩 | Z39: 完成 | AA39: 一种摄像头组件、移动终端及其摄像头组件的控制方法 | AB39: 2018-07-20 | AC39: 2020-11-20 | AE39: 2020-11-23
A40: 2021.01 | B40: PAIN1813930 | C40: 发明 | D40: 普通新申请 | F40: 处理审查意见 | H40: B | I40: 实质 | L40: A1级 | M40: 1.5 | P40: 刘桂兰 | Q40: 孔丽霞 | R40: OPPO广东移动通信有限公司 | S40: OPPO广东移动通信有限公司 | T40: 2021-01-19 | U40: 2021-01-13 | V40: 2020-11-30 | W40: 专利 | X40: 一通 | Y40: 1OA，延期1次，无单一性问题，答辩 | Z40: 完成 | AA40: 移动终端 | AB40: 2018-08-28 | AC40: 2020-11-27 | AE40: 2020-11-30
A41: 2021.01 | B41: PAUS1911874 | C41: 发明 | D41: PCT国家阶段 | E41: 不分案 | F41: 分案评估 | H41: A | L41: A1级 | M41: 0.1 | P41: 刘桂兰 | Q41: 程利 | R41: OPPO广东移动通信有限公司 | S41: OPPO广东移动通信有限公司 | T41: 2021-01-19 | U41: 2021-01-19 | V41: 2021-01-15 | W41: 专利 | X41: 维持 | Z41: 完成 | AA41: 壳体制作方法及移动终端 | AB41: 2019-04-17 | AC41: 2021-01-15 | AE41: 2021-01-15 | AI41: 发明人看稿联系人： 李静
A42: 2021.01 | B42: PAIN2014615 | C42: 发明 | D42: 普通新申请 | E42: PAUS2014614的同族，不请款 | F42: 新申请 | H42: B | L42: A1级 | M42: 0 | P42: 刘桂兰 | R42: OPPO广东移动通信有限公司 | S42: OPPO广东移动通信有限公司 | T42: 2021-01-13 | U42: 2021-01-11 | V42: 2021-01-11 | W42: 专利 | X42: 已递交 | Y42: 不请款 | Z42: 完成 | AA42: 无线充电座 | AB42: 2020-08-21 | AC42: 2021-01-11 | AE42: 2021-01-11
A43: 2021.01 | B43: PAEPO2015020 | C43: 发明 | D43: PCT国家阶段 | E43: PAUS2015019的同族 | F43: 新申请 | H43: B | L43: A1级 | M43: 0.2 | P43: 刘桂兰 | R43: 理邦精密仪器股份有限公司 | S43: 深圳市理邦精密仪器股份有限公司 | T43: 2021-01-04 | U43: 2020-12-31 | V43: 2020-12-24 | W43: 专利 | X43: 已递交 | Z43: 完成 | AA43: 超声波换能器、超声波探头以及超声波检测装置 | AB43: 2020-09-10 | AC43: 2020-10-30 | AE43: 2020-12-24
A44: 2021.01 | B44: PAEPO1910977 | C44: 发明 | D44: 普通新申请 | E44: 不分案 | F44: 分案评估 | H44: A | L44: A1级 | M44: 0.1 | P44: 刘桂兰 | Q44: 孔丽霞 | R44: OPPO广东移动通信有限公司 | S44: OPPO广东移动通信有限公司 | T44: 2021-01-22 | U44: 2021-01-22 | V44: 2021-01-15 | W44: 专利 | X44: 维持 | Z44: 完成 | AA44: 移动终端保护壳、移动终端及移动终端组合件 | AB44: 2019-03-13 | AC44: 2021-01-15 | AE44: 2021-01-15
A45: 2021.01 | B45: PAEPO1813104 | C45: 发明 | D45: 普通新申请 | E45: 不分案 | F45: 分案评估 | L45: A1级 | M45: 0.1 | P45: 刘桂兰 | Q45: 程利 | R45: OPPO广东移动通信有限公司 | S45: OPPO广东移动通信有限公司 | T45: 2021-01-13 | U45: 2021-01-13 | V45: 2021-01-07 | W45: 专利 | X45: 授权 | Z45: 完成 | AA45: 一种摄像头组件、移动终端及其摄像头组件的控制方法 | AB45: 2018-07-20 | AC45: 2021-01-08 | AE45: 2021-01-07
A46: 2021.01 | B46: PAUS2014577-分案 | C46: 发明 | D46: 普通新申请 | E46: 不分案 | F46: 分案评估 | H46: B | L46: A1级 | M46: 0.1 | P46: 刘桂兰 | R46: OPPO广东移动通信有限公司 | S46: OPPO广东移动通信有限公司 | T46: 2021-01-12 | U46: 2021-01-12 | V46: 2021-01-07 | W46: 专利 | X46: 维持 | Z46: 完成 | AA46: 显示屏、终端显示屏组件及移动终端 | AB46: 2020-08-21 | AC46: 2021-01-08 | AE46: 2021-01-07 | AI46: 由PAUS1815946 新增开.
A47: 2021.01 | B47: PAEPO1910404 | C47: 发明 | D47: 普通新申请 | E47: 12月完成，未计 | F47: 欧洲案答辩 | H47: A | I47: 实质 | L47: A1级 | M47: 1.5 | P47: 刘桂兰 | Q47: 程利 | R47: OPPO广东移动通信有限公司 | S47: OPPO广东移动通信有限公司 | T47: 2020-12-16 | U47: 2020-12-07 | V47: 2020-10-26 | W47: 专利 | X47: 已递交 | Y47: 欧洲核驳通知，答辩 | Z47: 完成 | AA47: 终端显示屏组件及移动终端 | AB47: 2020-09-16 | AC47: 2020-10-21
A48: 2021.01 | B48: PAUS1911736 | C48: 发明 | D48: 普通新申请 | E48: 不分案 | F48: 分案评估 | H48: B | L48: C3级 | M48: 0.1 | N48: 0.2 | O48: =M48*N48 -> 0.02 | P48: 刘海翔 | Q48: 李莉 | R48: OPPO广东移动通信有限公司 | S48: OPPO广东移动通信有限公司 | T48: 2021-01-05 | U48: 2021-01-05 | V48: 2020-12-18 | W48: 专利 | X48: 维持 | Y48: 不分案 | Z48: 完成 | AA48: 电子装置 | AB48: 2019-04-11 | AC48: 2020-12-18 | AE48: 2020-12-18
A49: 2021.01 | B49: PCTCN1914955 | C49: 发明 | D49: PCT国家阶段 | F49: 处理审查意见 | G49: 一通 | I49: 实质 | L49: C3级 | M49: 0.5 | P49: 刘海翔 | Q49: 孔丽霞 | R49: OPPO广东移动通信有限公司 | S49: OPPO广东移动通信有限公司 | T49: 2021-01-29 | U49: 2021-01-29T10:13:57.553 | V49: 2021-01-26T15:10:59.187 | W49: 专利 | X49: 一通 | Z49: 完成 | AA49: 用户位置识别方法、装置、存储介质及电子设备 | AB49: 2019-08-23 | AD49: 2020-11-19 | AE49: 2021-01-26T10:34:00.157
A50: 2021.01 | B50: PAEPO1913676-同套 | C50: 发明 | D50: 普通新申请 | E50: 不分案 | F50: 分案评估 | H50: S | L50: C3级 | M50: 0.1 | P50: 刘海翔 | Q50: 孔丽霞 | R50: OPPO广东移动通信有限公司 | S50: OPPO广东移动通信有限公司 | T50: 2021-01-20 | U50: 2021-01-20 | V50: 2021-01-18 | W50: 专利 | X50: 维持 | Z50: 完成 | AA50: 电子设备 | AB50: 2019-07-08 | AC50: 2021-01-18 | AE50: 2021-01-18 | AI50: 由PACN1815132-特殊请款 新增开. 专利申请重要级别:A 同套实用新型结案 特殊请款
A51: 2021.01 | B51: PAUS1934630 | C51: 外观设计 | D51: 普通新申请 | E51: 外观设计补正不请款 | F51: 补正 | L51: C3级 | M51: 0 | P51: 刘海翔 | Q51: 李莉 | R51: 深圳麦克韦尔股份有限公司 | S51: 深圳麦克韦尔科技有限公司 | T51: 2021-01-09 | W51: 专利 | X51: 待领证 | Y51: 不请款 | Z51: 完成 | AA51: 电子烟 | AB51: 2019-08-07 | AE51: 2021-01-08 | AI51: 由PACN1930961 新增开.
A52: 2021.01 | B52: PAUS2016269 | C52: 发明 | D52: PCT国家阶段 | E52: 按照案件点数计算，发客户超一月 | F52: 新申请 | H52: B | L52: C3级 | M52: 1.7 | P52: 刘海翔 | Q52: 程利 | R52: OPPO广东移动通信有限公司 | S52: OPPO广东移动通信有限公司 | V52: 2020-12-28 | W52: 专利 | X52: 未递交 | Y52: 延期2次，11862字 | Z52: 外部审核 | AA52: 一种UI显示方法、装置、终端设备及存储介质 | AB52: 2020-11-08 | AC52: 2020-12-28 | AE52: 2020-12-28
A53: 2021.01 | B53: PACN2016858 | C53: 发明 | D53: 普通新申请 | E53: 发客户超一月（CN/PCT首次） | F53: 新申请 | H53: B | L53: C3级 | M53: 1 | P53: 刘海翔 | Q53: 李庆波 | R53: 美的集团 | S53: 广东美的白色家电技术创新中心有限公司,美的集团股份有限公司 | V53: 2020-12-30T12:39:24.010 | W53: 专利 | X53: 未递交 | Z53: 外部审核 | AA53: 米饭糖分检测方法 | AB53: 2020-11-26 | AC53: 2020-12-14 | AD53: 2020-12-10T18:58:31.520 | AE53: 2020-12-25T13:57:54.290 | AG53: =V53-AC53 -> 16.52736123
A54: 2021.01 | B54: PACN2016519-预审加快 | C54: 发明 | D54: 普通新申请 | E54: 预审答复，绩效表中没有，在新申请未递交前修改，暂时先不计算绩效 | F54: 佛山中心预审答复 | H54: B | I54: 实质 | L54: C3级 | M54: 0 | P54: 刘海翔 | Q54: 孔丽霞 | R54: 美的集团 | S54: 佛山市顺德区美的洗涤电器制造有限公司 | T54: 2021-01-26 | U54: 2020-12-23T14:16:24.920 | V54: 2020-12-18T11:09:13.967 | W54: 专利 | X54: 受理 | Y54: ipr委案备注：请根据交底和与发明人的沟通，做好检索和专利布局清单、专利申请类型及权利要求布局意见，谢谢！ | Z54: 完成 | AA54: 蜗舌和包括其的风机 | AB54: 2020-11-16 | AC54: 2020-11-30 | AD54: 2020-12-01 | AE54: 2020-11-26T16:39:15.760 | AI54: 专利等级：三级； 请求单位/部门：厨房和热水事业部；研究院；基础技术
A55: 2021.01 | B55: PAGB1811353 | C55: 发明 | D55: PCT国家阶段 | E55: 1OA，分析+答辩，递交中 | F55: 处理审查意见 | G55: 一通 | H55: B | I55: 实质 | L55: C3级 | M55: 1.5 | P55: 刘海翔 | Q55: 程利 | R55: 深圳市华星光电技术有限公司 | S55: TCL华星光电技术有限公司 | T55: 2021-01-27 | U55: 2021-01-27 | V55: 2021-01-27 | W55: 专利 | X55: 一通 | Z55: 递交中 | AA55: 液晶显示面板、阵列基板及其制造方法
A56: 2021.01 | B56: PAEPO1612025 | C56: 发明 | D56: PCT国家阶段 | F56: 欧洲案答辩 | I56: 实质 | L56: B1级 | M56: 1.5 | P56: 刘欢 | Q56: 孔丽霞 | R56: 国民技术股份有限公司 | S56: 国民技术股份有限公司 | T56: 2021-01-11 | U56: 2021-01-08 | V56: 2021-01-04 | W56: 专利 | X56: 一通 | Y56: 欧洲核驳通知 | Z56: 完成 | AA56: 无线通信方法、装置及其应用系统和设备 | AB56: 2016-06-08 | AC56: 2020-12-10 | AD56: 2020-12-04 | AE56: 2020-12-30 | AI56: 方案支持部 申请+OA打包价，已收款。
A57: 2021.01 | B57: WOCN2110139-5G特殊请款 | C57: 发明 | D57: PCT国际阶段 | E57: PCT首次 | F57: 新申请 | H57: S | L57: B1级 | M57: 1 | P57: 刘欢 | Q57: 钟子敏 | R57: 惠州TCL移动通信有限公司 | S57: 捷开通讯（深圳）有限公司 | T57: 2021-01-12 | U57: 2021-01-12T17:44:34.540 | V57: 2021-01-11T18:09:49.140 | W57: 专利 | X57: 已递交 | Y57: 官方期限管制为申请日+3个月，内部期限管制为申请日+1个月，需及时跟进客户优先权副本的寄送，及时签收。 | Z57: 完成 | AA57: MBS多控制信道配置的更新方法 | AB57: 2021-01-08 | AC57: 2021-01-15 | AE57: 2021-01-08T14:31:02.880 | AG57: =V57-AC57 -> -3.24318125 | AI57: 5G案件
A58: 2021.01 | B58: PACN2023931-TS | C58: 实用新型 | D58: 普通新申请 | F58: 补正 | L58: B1级 | M58: 0 | P58: 刘欢 | Q58: 袁江龙 | R58: 深圳市友亿成照明有限公司 | S58: 深圳市友亿成智能照明股份有限公司 | T58: 2021-01-18 | U58: 2021-01-08T16:13:47.370 | W58: 专利 | X58: 补正 | Z58: 完成 | AA58: 一种灯具 | AB58: 2020-07-27 | AD58: 2021-01-10
A59: 2021.01 | B59: WOCN2017474-5G特殊请款 | C59: 发明 | D59: PCT国际阶段 | E59: PCT首次 | F59: 新申请 | H59: S | L59: B1级 | M59: 1 | P59: 刘欢 | Q59: 刘希 | R59: 惠州TCL移动通信有限公司 | S59: 捷开通讯（深圳）有限公司 | T59: 2021-01-14 | U59: 2021-01-14T15:14:25.603 | V59: 2021-01-14T11:01:38.737 | W59: 专利 | X59: 已递交 | Y59: 客户要求递交期限：2021-01-15 配案主管备注:1月15日前完成递交 | Z59: 完成 | AA59: MBS业务中进行小区切换或重选的方法 | AB59: 2020-12-21 | AC59: 2021-01-15 | AD59: 2021-01-04 | AG59: =V59-AC59 -> -0.5405238773 | AI59: 5G案件
A60: 2021.01 | B60: WOCN2110003-5G特殊请款 | C60: 发明 | D60: PCT国际阶段 | E60: PCT首次 | F60: 新申请 | H60: S | L60: B1级 | M60: 1 | P60: 刘欢 | Q60: 刘希 | R60: 惠州TCL移动通信有限公司 | S60: 捷开通讯（深圳）有限公司 | T60: 2021-01-14 | U60: 2021-01-14T15:20:05.333 | V60: 2021-01-14T10:54:13.023 | W60: 专利 | X60: 已递交 | Y60: 客户要求递交期限：2021-01-15;官方期限管制为申请日+3个月，内部期限管制为申请日+1个月，需及时跟进客户优先权副本的寄送，及时签收。 | Z60: 完成 | AA60: 一种提高MBS业务传输可靠性的通信方法 | AB60: 2021-01-04 | AC60: 2021-01-15 | AD60: 2021-01-18T11:21:00.853 | AG60: =V60-AC60 -> -0.5456826042 | AI60: 5G案件
A61: 2021.01 | B61: WOCN2110146-5G特殊请款 | C61: 发明 | D61: PCT国际阶段 | E61: PCT首次 | F61: 新申请 | H61: S | L61: B1级 | M61: 1 | P61: 刘欢 | Q61: 刘希 | R61: 惠州TCL移动通信有限公司 | S61: 捷开通讯（深圳）有限公司 | T61: 2021-01-17 | U61: 2021-01-17T15:30:07.350 | V61: 2021-01-15 | W61: 专利 | X61: 已递交 | Y61: 客户要求递交期限：2021-01-15 | Z61: 完成 | AA61: 一种多TRP系统中TCI状态的配置方法 | AB61: 2021-01-08 | AC61: 2021-01-15 | AD61: 2021-01-22 | AG61: =V61-AC61 -> 0 | AI61: 5G案件 中文撰写并提交PCT申请
A62: 2021.01 | B62: WOCN2110318-5G特殊请款 | C62: 发明 | D62: PCT国际阶段 | E62: PCT首次 | F62: 新申请 | H62: S | L62: B1级 | M62: 1 | P62: 刘欢 | Q62: 刘希 | R62: 惠州TCL移动通信有限公司 | S62: 捷开通讯（深圳）有限公司 | T62: 2021-01-16 | U62: 2021-01-16T19:08:47.680 | V62: 2021-01-16 | W62: 专利 | X62: 已递交 | Y62: 官方期限管制为申请日+3个月，内部期限管制为申请日+1个月，需及时跟进客户优先权副本的寄送，及时签收。 | Z62: 完成 | AA62: 一种多TRP系统中PDCCH的监测方法 | AB62: 2021-01-16 | AC62: 2021-01-16 | AD62: 2021-01-16 | AG62: =V62-AC62 -> 0 | AI62: 5G案件 中文撰写并提交PCT申请
A63: 2021.01 | B63: PACN1812534 | C63: 发明 | D63: 普通新申请 | F63: 主动补正 | H63: A | K63: 刘欢 | L63: B1级 | M63: 0 | P63: 刘欢 | Q63: 翁旋艺 | R63: 广州华多网络科技有限公司（YY） | S63: 广州方硅信息技术有限公司 | T63: 2021-01-11 | U63: 2021-01-11T16:41:54.067 | W63: 专利 | X63: 授权 | Z63: 完成 | AA63: 基于直播进行游戏的直播间进入方法、系统、终端及装置 | AB63: 2018-06-21 | AI63: 由PACN1812534-撤回重新递交 新增开.
A64: 2021.01 | B64: PACN1812645 | C64: 发明 | D64: 普通新申请 | F64: 主动补正 | H64: A | J64: 实质 | K64: 刘欢 | L64: B1级 | M64: 0 | P64: 刘欢 | R64: 深圳市优必选科技股份有限公司 | S64: 深圳市优必选科技有限公司 | T64: 2021-01-27 | U64: 2021-01-27T16:41:45.860 | W64: 专利 | X64: 补正 | Z64: 完成 | AA64: 一种机器人的交互方法、机器人及具有存储功能的装置 | AB64: 2018-06-28 | AD64: 2021-02-03
A65: 2021.01 | B65: PACN2017649-分案-特殊请款 | C65: 发明 | D65: 普通新申请 | E65: 分案申请 | F65: 新申请 | H65: S | L65: B1级 | M65: 0.3 | N65: 0.2 | O65: =M65*N65 -> 0.06 | P65: 刘欢 | Q65: 李申 | R65: 惠州TCL移动通信有限公司 | S65: 捷开通讯（深圳）有限公司 | T65: 2021-01-27 | U65: 2021-01-27T16:53:52.200 | V65: 2021-01-27T10:54:09.723 | W65: 专利 | X65: 受理 | Z65: 完成 | AA65: 无线通讯设备的感测方法 | AB65: 2020-12-25 | AD65: 2021-01-08 | AE65: 2021-01-22T13:54:20.723 | AI65: 由PCTCN1811397-特殊请款 新增开. 请依据附件的美国间续案的权利要求在中国提出分案申请 由WOCN1712075-DA 新增开. 至少有一项权利要求具有创造性JRD COMMUNICATION INC.
A66: 2021.01 | B66: PACN1812460 | C66: 发明 | D66: 普通新申请 | F66: 处理审查意见 | G66: 一通 | H66: A | I66: 实质 | L66: B1级 | M66: 0.5 | N66: 0.2 | O66: =M66*N66 -> 0.1 | P66: 刘欢 | Q66: 袁江龙 | R66: 深圳市华星光电技术有限公司 | S66: 武汉华星光电技术有限公司 | T66: 2021-01-25 | U66: 2021-01-22T17:40:06.773 | V66: 2021-01-21T17:15:28.510 | W66: 专利 | X66: 实审 | Z66: 完成 | AA66: 一种异形显示面板及异形显示装置 | AB66: 2018-06-15 | AD66: 2020-10-29 | AE66: 2021-01-21T16:42:54.820 | AI66: 品质处-->新产品品质及测试分析部
A67: 2021.01 | B67: PACN1812543 | C67: 发明 | D67: 普通新申请 | F67: 主动补正 | H67: B | J67: 实质 | K67: 刘欢 | L67: B1级 | M67: 0 | P67: 刘欢 | Q67: 翁旋艺 | R67: 广州华多网络科技有限公司（YY） | S67: 广州方硅信息技术有限公司 | T67: 2021-01-11 | U67: 2021-01-11T16:50:06.700 | W67: 专利 | X67: 授权 | Z67: 完成 | AA67: 基于直播进行游戏的直播间进入方法、系统、终端及装置 | AB67: 2018-06-21 | AI67: 由PACN1812543-撤回重新递交 新增开.
A68: 2021.01 | B68: WOCN2017380-5G特殊请款 | C68: 发明 | D68: PCT国际阶段 | E68: PCT首次 | F68: 新申请 | H68: S | L68: B1级 | M68: 1 | P68: 刘欢 | Q68: 钟子敏 | R68: 惠州TCL移动通信有限公司 | S68: 捷开通讯（深圳）有限公司 | T68: 2021-01-12 | U68: 2021-01-12T17:42:27.677 | V68: 2021-01-11T18:14:11.537 | W68: 专利 | X68: 已递交 | Y68: 客户要求递交期限：2020-12-31;官方期限管制为申请日+3个月，内部期限管制为申请日+1个月，需及时跟进客户优先权副本的寄送，及时签收。 | Z68: 完成 | AA68: 基于短消息的MBS控制信道配置的更新方法 | AB68: 2020-12-16 | AC68: 2020-12-31 | AD68: 2020-12-30 | AE68: 2021-01-08T14:31:02.880 | AG68: =V68-AC68 -> 11.75985575 | AI68: 5G案件
A69: 2021.01 | B69: PAUS2016259 | C69: 发明 | D69: PCT国家阶段 | E69: 未做任何工作，不算绩效 | F69: 新申请 | H69: B | L69: B1级 | M69: 0 | P69: 刘欢 | Q69: 孔丽霞 | R69: OPPO广东移动通信有限公司 | S69: OPPO广东移动通信有限公司 | T69: 2021-01-25 | U69: 2021-01-20 | V69: 2020-12-21 | W69: 专利 | X69: 已递交 | Y69: 延期1次，中翻英，翻译PCT/CN2019/085878，16752字 | Z69: 完成 | AA69: 麦克风堵孔检测方法及相关产品 | AB69: 2020-11-08 | AC69: 2020-12-11 | AE69: 2020-12-15
A70: 2021.01 | B70: PCTCN1811397-特殊请款+分案 | C70: 发明 | D70: 普通新申请 | E70: 发明一次OA授权 | L70: B1级 | M70: 0.2 | N70: 0.2 | O70: =M70*N70 -> 0.04 | P70: 刘欢 | Q70: 李申
A71: 2021.01 | B71: PACN1812543 | C71: 发明 | D71: 普通新申请 | E71: 发明一次OA授权 | L71: B1级 | M71: 0.2 | N71: 0.2 | O71: =M71*N71 -> 0.04 | P71: 刘欢 | Q71: 翁旋艺
A72: 2021.01 | B72: WOCN2110145-5G特殊请款 | C72: 发明 | D72: PCT国际阶段 | F72: 新申请 | H72: S | L72: B2级 | M72: 1 | P72: 段哲 | Q72: 钟子敏 | R72: 惠州TCL移动通信有限公司 | S72: 捷开通讯（深圳）有限公司 | T72: 2021-01-13 | U72: 2021-01-13T16:22:43.950 | V72: 2021-01-13T14:28:21.273 | W72: 专利 | X72: 已递交 | Y72: 客户要求递交期限：2021-01-15;官方期限管制为申请日+3个月，内部期限管制为申请日+1个月，需及时跟进客户优先权副本的寄送，及时签收。 | Z72: 完成 | AA72: 一种用户设备的天线面板切换方法及通信设备 | AB72: 2021-01-08 | AC72: 2021-01-15 | AD72: 2021-01-22 | AG72: =V72-AC72 -> -1.396976007 | AI72: 5G案件 中文撰写并提交PCT申请
A73: 2021.01 | B73: PCTCN2016287 | C73: 发明 | D73: PCT国家阶段 | E73: 外-内 | F73: 新申请 | H73: B | L73: B2级 | M73: 1.5 | P73: 段哲 | Q73: 孔丽霞 | R73: OPPO广东移动通信有限公司 | S73: OPPO广东移动通信有限公司 | T73: 2021-01-12 | U73: 2021-01-11 | V73: 2020-12-15 | W73: 专利 | X73: 受理 | Z73: 完成 | AA73: 红外投影仪，成像设备和终端设备 | AB73: 2020-11-08 | AC73: 2020-12-15 | AE73: 2020-12-08 | AI73: 美国临时优先权，英文PCT进欧美中
A74: 2021.01 | B74: WOCN2017119-5G特殊请款 | C74: 发明 | D74: PCT国际阶段 | F74: 新申请 | H74: S | L74: B2级 | M74: 1 | P74: 段哲 | Q74: 刘希 | R74: 惠州TCL移动通信有限公司 | S74: 捷开通讯（深圳）有限公司 | T74: 2021-01-05 | U74: 2021-01-05 | V74: 2020-12-29 | W74: 专利 | X74: 已递交 | Y74: 客户要求递交期限：2020-12-21;官方期限管制为申请日+3个月，内部期限管制为申请日+1个月，需及时跟进客户优先权副本的寄送，及时签收。;官方期限管制为申请日+3个月，内部期限管制为申请日+1个月，需及时跟进客户优先权副本的寄送，及时签收。 | Z74: 完成 | AA74: HARQ传输增强方法､通信设备及可读存储介质 | AB74: 2020-12-04 | AC74: 2020-12-21 | AD74: 2020-12-18 | AE74: 2020-12-22 | AG74: =V74-AC74 -> 8 | AI74: 5G案件
A75: 2021.01 | B75: PAUS2037468 | C75: 外观设计 | D75: 普通新申请 | F75: 新申请 | L75: B2级 | M75: 0.2 | N75: 0.2 | O75: =M75*N75 -> 0.04 | P75: 段哲 | Q75: 李莉 | R75: 深圳麦克韦尔股份有限公司 | S75: 深圳麦克韦尔科技有限公司 | T75: 2021-01-19 | U75: 2021-01-07 | V75: 2021-01-06 | W75: 专利 | X75: 已递交 | Y75: 要求递交期限：2021/1/21，外所建议：虚线间距加大 | Z75: 完成 | AA75: 电子雾化器 | AB75: 2020-12-17 | AC75: 2021-01-06 | AD75: 2020-12-31 | AE75: 2021-01-05 | AI75: 由PACN2034033 新增开.
A76: 2021.01 | B76: PAEPO2037467 | C76: 外观设计 | D76: 普通新申请 | F76: 新申请 | L76: B2级 | M76: 0.2 | N76: 0.2 | O76: =M76*N76 -> 0.04 | P76: 段哲 | Q76: 李莉 | R76: 深圳麦克韦尔股份有限公司 | S76: 深圳麦克韦尔科技有限公司 | T76: 2021-01-12 | U76: 2021-01-08 | V76: 2021-01-06 | W76: 专利 | X76: 已递交 | Y76: 要求递交期限：2021/1/21 | Z76: 完成 | AA76: 电子雾化器 | AB76: 2020-12-17 | AC76: 2021-01-06 | AD76: 2020-12-31 | AE76: 2021-01-05 | AI76: 由PACN2034033 新增开.
A77: 2021.01 | B77: PAUS2037469 | C77: 外观设计 | D77: 普通新申请 | F77: 新申请 | L77: B2级 | M77: 0.2 | N77: 0.2 | O77: =M77*N77 -> 0.04 | P77: 段哲 | Q77: 李莉 | R77: 深圳麦克韦尔股份有限公司 | S77: 深圳麦克韦尔科技有限公司 | T77: 2021-01-19 | U77: 2021-01-13 | V77: 2021-01-06 | W77: 专利 | X77: 已递交 | Y77: 要求递交期限：2021/2/11，外所建议：虚线间距加大 | Z77: 完成 | AA77: 电子雾化装置 | AB77: 2020-12-17 | AC77: 2021-01-06 | AD77: 2020-12-31 | AE77: 2021-01-05 | AI77: 由PACN2034708 新增开.
A78: 2021.01 | B78: WOCN2017500-5G特殊请款 | C78: 发明 | D78: PCT国际阶段 | F78: 新申请 | H78: S | L78: B2级 | M78: 1 | P78: 段哲 | Q78: 刘希 | R78: 惠州TCL移动通信有限公司 | S78: 捷开通讯（深圳）有限公司 | T78: 2021-01-18 | U78: 2021-01-18T16:20:28.847 | V78: 2021-01-18T15:46:23 | W78: 专利 | X78: 已递交 | Y78: 客户要求递交期限：2021-01-15 配案主管备注:递交期限1月15日 | Z78: 完成 | AA78: 一种多TRP系统的波束恢复方法、通信设备及可读存储介质 | AB78: 2020-12-22 | AC78: 2021-01-15 | AD78: 2021-01-05 | AG78: =V78-AC78 -> 3.657210648 | AI78: 5G案件
A79: 2021.01 | B79: PAEPO2037670 | C79: 外观设计 | D79: 普通新申请 | F79: 新申请 | L79: B2级 | M79: 0.2 | N79: 0.2 | O79: =M79*N79 -> 0.04 | P79: 段哲 | Q79: 李莉 | R79: 深圳麦克韦尔股份有限公司 | S79: 深圳麦克韦尔科技有限公司 | T79: 2021-01-15 | U79: 2021-01-13 | V79: 2021-01-06 | W79: 专利 | X79: 已递交 | Y79: 要求递交期限：2021/1/15。保护雾化器 | Z79: 完成 | AA79: 电子雾化装置 | AB79: 2020-12-25 | AC79: 2021-01-07 | AD79: 2020-12-31 | AE79: 2021-01-05 | AI79: 由PACN2034708 新增开.保护雾化器
A80: 2021.01 | B80: WOCN2110147-5G特殊请款 | C80: 发明 | D80: PCT国际阶段 | F80: 新申请 | H80: S | L80: B2级 | M80: 1 | P80: 段哲 | Q80: 钟子敏 | R80: 惠州TCL移动通信有限公司 | S80: 捷开通讯（深圳）有限公司 | T80: 2021-01-14 | U80: 2021-01-14T16:23:35.177 | V80: 2021-01-14T11:17:51.003 | W80: 专利 | X80: 已递交 | Y80: 客户要求递交期限：2021-01-15;官方期限管制为申请日+3个月，内部期限管制为申请日+1个月，需及时跟进客户优先权副本的寄送，及时签收。 | Z80: 完成 | AA80: 一种上行传输方法、通信设备及可读存储介质 | AB80: 2021-01-08 | AC80: 2021-01-15 | AD80: 2021-01-22 | AG80: =V80-AC80 -> -0.5292707986 | AI80: 5G案件 中文撰写并提交PCT申请
A81: 2021.01 | B81: PAUS2031651-分案 | C81: 外观设计 | D81: 普通新申请 | F81: Non Final Action | I81: 形式 | L81: B2级 | M81: 0.2 | N81: 0.2 | O81: =M81*N81 -> 0.04 | P81: 段哲 | Q81: 李莉 | R81: 深圳麦克韦尔股份有限公司 | S81: 深圳麦克韦尔科技有限公司 | T81: 2021-01-29 | U81: 2021-01-27 | V81: 2021-01-12 | W81: 专利 | X81: Non Final Action | Y81: 1OA | Z81: 完成 | AA81: 雾化器（TH305）(CN) | AB81: 2020-04-20 | AC81: 2021-01-13 | AD81: 2020-12-16 | AE81: 2021-01-10 | AI81: 由PAUS1836257 新增开. 由PACN1836256 新增开.
A82: 2021.01 | B82: PAEPO2037470 | C82: 外观设计 | D82: 普通新申请 | F82: 新申请 | L82: B2级 | M82: 0.2 | N82: 0.2 | O82: =M82*N82 -> 0.04 | P82: 段哲 | Q82: 李莉 | R82: 深圳麦克韦尔股份有限公司 | S82: 深圳麦克韦尔科技有限公司 | T82: 2021-01-15 | U82: 2021-01-13 | V82: 2021-01-06 | W82: 专利 | X82: 已递交 | Y82: 要求递交期限：2021/2/11 | Z82: 完成 | AA82: 电子雾化装置 | AB82: 2020-12-17 | AC82: 2021-01-06 | AD82: 2020-12-31 | AE82: 2021-01-05 | AI82: 由PACN2034708 新增开.
A83: 2021.01 | B83: WOCN2017264-5G特殊请款 | C83: 发明 | D83: PCT国际阶段 | F83: 新申请 | H83: S | L83: B2级 | M83: 1 | P83: 段哲 | Q83: 刘希 | R83: 惠州TCL移动通信有限公司 | S83: 捷开通讯（深圳）有限公司 | T83: 2021-01-05 | U83: 2021-01-04 | V83: 2020-12-31 | W83: 专利 | X83: 已递交 | Y83: 客户要求递交期限：2020-12-25;官方期限管制为申请日+3个月，内部期限管制为申请日+1个月，需及时跟进客户优先权副本的寄送，及时签收。;官方期限管制为申请日+3个月，内部期限管制为申请日+1个月，需及时跟进客户优先权副本的寄送，及时签收。 | Z83: 完成 | AA83: 一种用于载波聚合的上下行波束指示方法及通信设备 | AB83: 2020-12-10 | AC83: 2020-12-25 | AD83: 2020-12-24 | AE83: 2020-12-29 | AG83: =V83-AC83 -> 6 | AI83: 5G案件
A84: 2021.01 | B84: PCTCN1712067-特殊请款-重要 | C84: 发明 | D84: PCT国家阶段 | E84: 发客户超一个月 | F84: 处理审查意见 | G84: 二通 | H84: B | I84: 实质 | J84: 实质 | K84: 李建民 | L84: B2级 | M84: 0.2 | P84: 段哲 | Q84: 李建民 | R84: 惠州TCL移动通信有限公司 | S84: 捷开通讯（深圳）有限公司 | V84: 2020-11-13 | W84: 专利 | X84: 二通 | Z84: 外部审核 | AA84: 无线电接入网络与无线局域网的协作系统及方法 | AB84: 2017-05-10 | AD84: 2020-10-16 | AE84: 2020-11-12
A85: 2021.01 | B85: PAUS1811508 | C85: 发明 | D85: PCT国家阶段 | F85: Non Final Action | H85: B | I85: 实质 | L85: A1级 | M85: 1.5 | P85: 经雷 | Q85: 程利 | R85: 华讯方舟科技有限公司 | S85: 深圳市华讯方舟太赫兹科技有限公司,华讯方舟科技有限公司 | T85: 2021-01-14 | U85: 2021-01-14 | V85: 2021-01-11 | W85: 专利 | X85: Non Final Action | Y85: 1OA，无核准项，分析+答辩 | Z85: 完成 | AA85: 人体安检仪的监测方法和系统以及控制装置 | AB85: 2018-04-13 | AC85: 2021-01-05 | AD85: 2020-12-09 | AE85: 2021-01-05 | AI85: 由WOCN1811495 新增开.
A86: 2021.01 | B86: PAUS1917262 | C86: 发明 | D86: PCT国家阶段 | F86: Final Action | H86: A | I86: 实质 | L86: A1级 | M86: 1.5 | P86: 经雷 | Q86: 程利 | R86: OPPO广东移动通信有限公司 | S86: OPPO广东移动通信有限公司 | T86: 2021-01-18 | U86: 2021-01-12 | V86: 2020-12-22 | W86: 专利 | X86: Final Action | Y86: 2OA，无可准项，答辩 | Z86: 完成 | AA86: 消息显示方法、装置及终端 | AB86: 2019-11-28 | AC86: 2020-12-20 | AD86: 2020-12-01 | AE86: 2020-12-17
A87: 2021.01 | B87: PAUS1915484 | C87: 发明 | D87: PCT国家阶段 | E87: 不分案 | F87: 分案评估 | H87: A | L87: A1级 | M87: 0.1 | P87: 经雷 | Q87: 孔丽霞 | R87: OPPO广东移动通信有限公司 | S87: OPPO广东移动通信有限公司 | T87: 2021-01-12 | U87: 2021-01-12 | V87: 2021-01-04 | W87: 专利 | X87: 维持 | Z87: 完成 | AA87: 降低移动终端功耗的方法、装置、存储介质及移动终端 | AB87: 2019-09-18 | AC87: 2021-01-04 | AE87: 2021-01-04
A88: 2021.01 | B88: PAUS1912276-结案 | C88: 发明 | D88: PCT国家阶段 | E88: 结案 | F88: 涉外结案 | H88: B | L88: A1级 | M88: 0.1 | P88: 经雷 | Q88: 程利 | R88: 惠州TCL移动通信有限公司 | S88: 惠州TCL移动通信有限公司 | T88: 2021-01-20 | V88: 2021-01-14 | W88: 专利 | X88: Advisory Action | Y88: 3OA, 无核准项；20210113收到审查员来电：“examiner said，the cliams will not be entered, because the prior art reads on the claims.”而后下发了AA来文。建议结案 | Z88: 结案 | AA88: 一种基于双指纹识别的验证方法、移动终端及存储装置 | AB88: 2019-05-06 | AE88: 2021-01-14 | AI88: 审查中结案
A89: 2021.01 | B89: PAUS1614457 | C89: 发明 | D89: 普通新申请 | F89: Non Final Action | H89: A | I89: 实质 | L89: A1级 | M89: 1.5 | P89: 经雷 | Q89: 程利 | R89: 深圳市合元科技有限公司 | S89: 深圳市合元科技有限公司 | T89: 2021-01-12 | U89: 2021-01-11 | V89: 2021-01-08 | W89: 专利 | X89: Non Final Action | Y89: 1OA after RCE，无可准项，答辩 | Z89: 完成 | AA89: 一种基于电子烟的智能化控制方法、控制系统及电子烟 | AB89: 2016-12-28 | AC89: 2020-12-15 | AD89: 2020-11-16 | AE89: 2020-12-10 | AI89: 由PACN1513737 新增开.
A90: 2021.01 | B90: PAUS1813233 | C90: 发明 | D90: PCT国家阶段 | F90: Final Action | H90: B | I90: 实质 | L90: A1级 | M90: 1.5 | P90: 经雷 | Q90: 程利 | R90: 惠州TCL移动通信有限公司 | S90: 捷开通讯（深圳）有限公司 | T90: 2021-01-19 | U90: 2021-01-19 | V90: 2020-12-15 | W90: 专利 | X90: Final Action | Y90: 2OA, 有核准项；AFCP | Z90: 完成 | AA90: 一种系统启动文件的校验及编译方法 | AB90: 2018-07-27 | AC90: 2020-12-18 | AD90: 2020-12-18 | AE90: 2020-12-15 | AI90: 由WOCN1713969 新增开. 由PACN1612838 新增开. 由JSCN1612568 新增开.
A91: 2021.01 | B91: PCTCN1914500 | C91: 发明 | D91: PCT国家阶段 | F91: 处理审查意见 | G91: 一通 | H91: B | I91: 实质 | L91: A1级 | M91: 0.5 | P91: 经雷 | Q91: 孔丽霞 | R91: McANDREWS HELD & MALLOY LTD | S91: ABS全球公司 | T91: 2021-01-29 | U91: 2021-01-27 | V91: 2020-11-09 | W91: 专利 | X91: 一通 | Z91: 完成 | AA91: 用于微流控芯片的疏水性涂层的方法和系统 | AB91: 2019-08-01 | AD91: 2020-12-04 | AE91: 2021-01-26
A92: 2021.01 | B92: PAUS1911350 | C92: 发明 | D92: 普通新申请 | E92: 不分案 | F92: 分案评估 | H92: A | L92: A1级 | M92: 0.1 | P92: 经雷 | Q92: 李莉 | R92: OPPO广东移动通信有限公司 | S92: OPPO广东移动通信有限公司 | T92: 2021-01-04 | U92: 2021-01-04 | V92: 2020-12-07 | W92: 专利 | X92: 维持 | Y92: 不分案 | Z92: 完成 | AA92: 移动终端、数据传输方法及相关产品 | AB92: 2019-03-22 | AC92: 2020-12-18 | AE92: 2020-12-07
A93: 2021.01 | B93: PAUS1911729 | C93: 发明 | D93: 普通新申请 | E93: 不分案 | F93: 分案评估 | H93: B | L93: A1级 | M93: 0.1 | P93: 经雷 | Q93: 程利 | R93: OPPO广东移动通信有限公司 | S93: OPPO广东移动通信有限公司 | T93: 2021-01-12 | U93: 2021-01-12 | V93: 2021-01-04 | W93: 专利 | X93: 维持 | Z93: 完成 | AA93: 连接器母座及公头、适配器、移动终端和电子装置 | AB93: 2019-04-11 | AC93: 2021-01-04 | AE93: 2021-01-04
A94: 2021.01 | B94: PAUS1813722 | C94: 发明 | D94: 普通新申请 | F94: Non Final Action | H94: A | I94: 形式 | L94: A1级 | M94: 0.2 | P94: 经雷 | Q94: 孔丽霞 | R94: 杰发科技（合肥）有限公司 | S94: 合肥杰发科技有限公司 | T94: 2021-01-18 | U94: 2021-01-15 | V94: 2021-01-13 | W94: 专利 | X94: Non Final Action | Y94: 1OA, 有核准项。答辩 | Z94: 完成 | AA94: 一种图像噪声估计方法和装置 | AB94: 2018-08-20 | AC94: 2021-01-13 | AD94: 2020-12-18 | AE94: 2021-01-13 | AI94: 由PACN1813716 新增开. 密码：navinfo
A95: 2021.01 | B95: PAUS1913073 | C95: 发明 | D95: PCT国家阶段 | E95: 递交中 | F95: Non Final Action | H95: A | I95: 实质 | L95: A1级 | M95: 1.5 | P95: 经雷 | Q95: 程利 | R95: OPPO广东移动通信有限公司 | S95: OPPO广东移动通信有限公司 | V95: 2020-12-31
A96: 2021.01 | B96: PAIN1813952 | C96: 发明 | D96: 普通新申请 | E96: 递交中 | F96: 处理审查意见 | H96: B | I96: 实质 | L96: A1级 | M96: 1.5 | P96: 经雷 | Q96: 程利 | R96: OPPO广东移动通信有限公司 | S96: OPPO广东移动通信有限公司 | V96: 2020-12-31
A97: 2021.01 | B97: PAEPO2016244 | C97: 发明 | D97: PCT国家阶段 | E97: 与PAUS2016243同套，递交中 | F97: 新申请 | H97: B | L97: A1级 | M97: 0.2 | P97: 经雷 | Q97: 孔丽霞 | R97: OPPO广东移动通信有限公司 | S97: OPPO广东移动通信有限公司
A98: 2021.01 | B98: PAUS2016274 | C98: 发明 | D98: PCT国际阶段 | E98: 翻译校核+实质修改,递交中 | F98: 翻译校核 | H98: A | I98: 实质 | L98: A1级 | M98: 0.7 | P98: 经雷 | Q98: 孔丽霞 | R98: OPPO广东移动通信有限公司 | S98: OPPO广东移动通信有限公司
A99: 2021.01 | B99: PAEPO1710053 | C99: 发明 | D99: PCT国家阶段 | E99: 上月已完成的漏计案件 | F99: 欧洲案答辩 | H99: B | I99: 实质 | L99: A1级 | M99: 1.5 | P99: 经雷 | Q99: 程利 | R99: 深圳市合元科技有限公司(null) | S99: 深圳市合元科技有限公司(null)
A100: 2021.01 | B100: PAUS1814395-结案 | C100: 发明 | D100: PCT国家阶段 | E100: 结案-1.29客户已回复 | F100: 涉外结案 | H100: B | L100: A1级 | M100: 0.1 | P100: 经雷 | Q100: 程利 | R100: 惠州TCL移动通信有限公司 | S100: 惠州TCL移动通信有限公司 | T100: 2021-01-20 | V100: 2021-01-14 | W100: 专利 | X100: Advisory Action | Y100: 3OA, 无核准项；20210113收到审查员来电：“examiner said，the cliams will not be entered, because the prior art reads on the claims.”而后下发了AA来文。建议结案 | Z100: 结案 | AA100: 一种基于双指纹识别的验证方法、移动终端及存储装置 | AB100: 2019-05-06 | AE100: 2021-01-14 | AI100: 审查中结案
A101: 2021.01 | B101: PAEPO1918043 | C101: 发明 | D101: 普通新申请 | F101: 欧洲案答辩 | H101: B | I101: 实质 | L101: B3级 | M101: 1.5 | P101: 曲海薇 | Q101: 程利 | R101: OPPO广东移动通信有限公司 | S101: OPPO广东移动通信有限公司 | T101: 2021-01-13 | U101: 2020-12-31 | V101: 2020-10-30 | W101: 专利 | X101: 已递交 | Y101: 欧洲检索报告，答辩 | Z101: 完成 | AA101: 基于多帧图像的图像处理方法和装置 | AB101: 2019-12-30 | AC101: 2020-11-02 | AE101: 2020-10-27
A102: 2021.01 | B102: PAUS1914952 | C102: 发明 | D102: PCT国家阶段 | F102: Non Final Action | H102: A | I102: 实质 | L102: B3级 | M102: 1.5 | P102: 曲海薇 | Q102: 程利 | R102: OPPO广东移动通信有限公司 | S102: OPPO广东移动通信有限公司 | T102: 2021-01-06 | U102: 2021-01-06 | V102: 2020-11-24 | W102: 专利 | X102: Non Final Action | Y102: 1OA，答辩 | Z102: 完成 | AA102: 用户位置识别方法、装置、存储介质及电子设备 | AB102: 2019-08-23 | AC102: 2020-11-23 | AE102: 2020-11-23
A103: 2021.01 | B103: PAIN1911725 | C103: 发明 | D103: 普通新申请 | F103: 处理审查意见 | H103: B | I103: 实质 | L103: B3级 | M103: 1.5 | N103: 0.2 | O103: =M103*N103 -> 0.3 | P103: 曲海薇 | Q103: 李莉 | R103: OPPO广东移动通信有限公司 | S103: OPPO广东移动通信有限公司 | T103: 2021-01-05 | U103: 2020-12-28 | V103: 2020-11-20 | W103: 专利 | X103: 一通 | Y103: 1OA，答辩 | Z103: 完成 | AA103: 摄像头装饰框和电子装置 | AB103: 2019-04-11 | AC103: 2020-11-20 | AE103: 2020-11-18
A104: 2021.01 | B104: PAEPO2010238 | C104: 发明 | D104: 普通新申请 | F104: Election Action | L104: B3级 | M104: 0.2 | P104: 曲海薇 | Q104: 程利 | R104: OPPO广东移动通信有限公司 | S104: OPPO广东移动通信有限公司 | T104: 2021-01-20 | U104: 2021-01-20 | V104: 2020-12-30 | W104: 专利 | X104: 已递交 | Y104: Partial search report，延期1次 | Z104: 完成 | AA104: 设备成像方法、装置、存储介质及电子设备 | AB104: 2020-01-19 | AC104: 2020-12-30 | AE104: 2020-12-29
A105: 2021.01 | B105: PAUS2011563 | C105: 发明 | D105: PCT国家阶段 | E105: 按字数记，中-英：14856字 | F105: 新申请 | H105: B | L105: B3级 | M105: =14856/1000*0.16 -> 2.37696 | P105: 曲海薇 | Q105: 田婵玉 | R105: 云谷（固安）科技有限公司 | S105: 成都辰显光电有限公司 | T105: 2021-01-08 | U105: 2021-01-04 | V105: 2020-05-21 | W105: 专利 | X105: 已递交 | Y105: 提前公开 | Z105: 完成 | AA105: 微发光器件的转移方法以及转移设备 | AB105: 2020-04-15 | AC105: 2020-05-20 | AE105: 2020-05-20 | AI105: 由WOCN1911387 新增开. 由PACN1813798 新增开.
A106: 2021.01 | B106: PAEPO1914319-同套 | C106: 发明 | D106: PCT国家阶段 | E106: 不分案 | F106: 分案评估 | H106: B | L106: B3级 | M106: 0.1 | N106: 0.2 | O106: =M106*N106 -> 0.02 | P106: 曲海薇 | Q106: 刘桂兰 | R106: OPPO广东移动通信有限公司 | S106: OPPO广东移动通信有限公司 | T106: 2021-01-22 | U106: 2021-01-22 | V106: 2021-01-19 | W106: 专利 | X106: 维持 | Z106: 完成 | AA106: 可折叠移动终端 | AB106: 2019-07-24 | AC106: 2021-01-18
A107: 2021.01 | B107: PAUS2012880 | C107: 发明 | D107: PCT国家阶段 | E107: 按件记。 | F107: 新申请 | H107: A | L107: B3级 | M107: 1.8 | P107: 曲海薇 | Q107: 孔丽霞 | R107: 云谷（固安）科技有限公司 | S107: 昆山国显光电有限公司 | T107: 2021-01-08 | U107: 2021-01-04 | V107: 2020-08-31 | W107: 专利 | X107: 已递交 | Y107: 需提前公开 | Z107: 完成 | AA107: 显示器及其显示面板 | AB107: 2020-06-17 | AC107: 2020-08-31 | AE107: 2020-08-31 | AI107: 由WOCN1917692 新增开. 由PACN1816101 新增开.
A108: 2021.01 | B108: PAUS2014194 | C108: 发明 | D108: PCT国家阶段 | E108: 中-英：17070字 | F108: 翻译 | H108: B | L108: B3级 | M108: =17070/1000*0.16 -> 2.7312 | P108: 曲海薇 | Q108: 程利 | R108: OPPO广东移动通信有限公司 | S108: OPPO广东移动通信有限公司 | T108: 2021-01-14 | U108: 2020-09-14 | V108: 2020-09-04 | W108: 专利 | X108: 未递交 | Y108: 对应OPPO系统修改策略事项，返稿时上传翻译初稿即可 | Z108: 完成 | AA108: 能力上报的方法和设备 | AB108: 2020-08-06 | AC108: 2020-09-04 | AE108: 2020-08-17 | AI108: 试写案件，指定代理人程利； 费用领域：标准
A109: 2021.01 | B109: PAAU2014201 | C109: 发明 | D109: PCT国家阶段 | E109: 与PAUS2014194同套 | F109: 新申请 | H109: B | L109: B3级 | M109: 0.2 | P109: 曲海薇 | R109: OPPO广东移动通信有限公司 | S109: OPPO广东移动通信有限公司 | T109: 2021-01-27 | U109: 2021-01-14 | V109: 2020-12-21 | W109: 专利 | X109: 已递交 | Y109: 不同时实审； | Z109: 完成 | AA109: 能力上报的方法和设备 | AB109: 2020-08-05 | AC109: 2020-12-18 | AE109: 2020-12-21
A110: 2021.01 | B110: PAUS1913053 | C110: 发明 | D110: PCT国家阶段 | F110: Non Final Action | H110: A | I110: 实质 | L110: B3级 | M110: 1.5 | N110: 0.2 | O110: =M110*N110 -> 0.3 | P110: 曲海薇 | Q110: 李莉 | R110: OPPO广东移动通信有限公司 | S110: OPPO广东移动通信有限公司 | T110: 2021-01-06 | U110: 2020-12-31 | V110: 2020-12-01 | W110: 专利 | X110: 授权 | Y110: 1OA，无可准项，答辩 | Z110: 完成 | AA110: 广播队列生成方法、装置、存储介质和终端设备 | AB110: 2019-06-13 | AC110: 2020-12-04 | AE110: 2020-11-28
A111: 2021.01 | B111: PAEPO1813528 | C111: 发明 | D111: 普通新申请 | E111: 不分案 | F111: 分案评估 | H111: A | L111: B3级 | M111: 0.1 | P111: 曲海薇 | Q111: 程利 | R111: OPPO广东移动通信有限公司 | S111: OPPO广东移动通信有限公司 | T111: 2021-01-20 | U111: 2021-01-20 | V111: 2020-12-31 | W111: 专利 | X111: 维持 | Z111: 完成 | AA111: 中框组件、中框组件加工方法及电子装置 | AB111: 2018-08-06 | AC111: 2020-12-31 | AE111: 2020-12-31
A112: 2021.01 | B112: PAUS2016272 | C112: 发明 | D112: PCT国家阶段 | E112: 形式修改 | F112: 翻译校核 | I112: 形式 | L112: B3级 | M112: 0.3 | P112: 曲海薇 | Q112: 孔丽霞 | R112: OPPO广东移动通信有限公司 | S112: OPPO广东移动通信有限公司 | T112: 2021-01-08 | U112: 2020-12-30 | V112: 2020-12-11 | W112: 专利 | X112: 已递交 | Y112: 延期1次 | Z112: 完成 | AA112: 数据传输控制方法及相关装置 | AB112: 2020-11-08 | AC112: 2020-12-16 | AE112: 2020-12-07
A113: 2021.01 | B113: PCTCN2017137 | C113: 发明 | D113: PCT国家阶段 | E113: 转格式 | F113: 新申请 | L113: B3级 | M113: 0.1 | N113: 0.2 | O113: =M113*N113 -> 0.02 | P113: 曲海薇 | Q113: 李申 | R113: OPPO广东移动通信有限公司 | S113: OPPO广东移动通信有限公司 | T113: 2021-01-08 | U113: 2021-01-08 | V113: 2021-01-05 | W113: 专利 | X113: 初审合格 | Y113: 同时提实审； | Z113: 完成 | AA113: 业务标识显示控制方法及相关产品 | AB113: 2020-12-04 | AC113: 2021-01-03 | AD113: 2020-12-14 | AE113: 2021-01-04
A114: 2021.01 | B114: PAUS1912229 | C114: 发明 | D114: PCT国家阶段 | F114: Non Final Action | H114: B | I114: 实质 | L114: B3级 | M114: 1.5 | P114: 曲海薇 | Q114: 程利 | R114: OPPO广东移动通信有限公司 | S114: OPPO广东移动通信有限公司 | T114: 2020-12-30 | U114: 2020-12-25 | V114: 2020-12-14 | W114: 专利 | X114: 完成 | Y114: 3OA，答辩 | Z114: 完成 | AA114: 终端 | AB114: 2020-11-30 | AC114: 2020-12-18 | AE114: 2020-12-14
A115: 2021.01 | B115: PAEPO2014195 | C115: 发明 | D115: PCT国家阶段 | E115: 与PAUS2014194同套 | F115: 新申请 | H115: B | L115: B3级 | M115: 0.2 | P115: 曲海薇 | Q115: 程利 | R115: OPPO广东移动通信有限公司 | S115: OPPO广东移动通信有限公司 | U115: 2021-01-14 | V115: 2020-09-29 | W115: 专利 | X115: 完成 | Z115: 完成 | AA115: 能力上报的方法和设备 | AB115: 2020-08-06 | AC115: 2020-10-09
A116: 2021.01 | B116: PAIN2014198 | C116: 发明 | D116: PCT国家阶段 | E116: 与PAUS2014194同套，不请款 | F116: 新申请 | H116: B | L116: B3级 | M116: 0 | P116: 曲海薇 | Q116: 程利 | R116: OPPO广东移动通信有限公司 | S116: OPPO广东移动通信有限公司 | U116: 2021-01-14 | V116: 2020-09-29 | W116: 专利 | X116: 完成 | Z116: 完成 | AA116: 能力上报的方法和设备 | AB116: 2020-08-06 | AC116: 2020-10-09
A117: 2021.01 | B117: PAUS2016250 | C117: 发明 | D117: PCT国家阶段 | E117: 按字数记，中-英：18522字 | F117: 新申请 | H117: B | L117: B3级 | M117: =18522/1000*0.16 -> 2.96352 | P117: 曲海薇 | Q117: 程利 | R117: OPPO广东移动通信有限公司 | S117: OPPO广东移动通信有限公司 | T117: 2021-01-29 | U117: 2021-01-29 | V117: 2020-12-15 | W117: 专利 | X117: 完成 | Z117: 完成 | AA117: 终端控制方法、装置、移动终端以及存储介质 | AB117: 2020-11-09 | AC117: 2020-12-21 | AE117: 2020-12-16
A118: 2021.01 | B118: PAUS1912226 | C118: 发明 | D118: PCT国家阶段 | F118: Non Final Action | H118: B | I118: 实质 | L118: C3级 | M118: 1.5 | P118: 邹孟达 | Q118: 程利 | R118: OPPO广东移动通信有限公司 | S118: OPPO广东移动通信有限公司 | T118: 2021-01-08 | U118: 2020-12-30 | V118: 2020-12-25 | W118: 专利 | X118: Final Action | Y118: 1OA，无可准项，延期1次，答辩 | Z118: 完成 | AA118: 终端 | AB118: 2019-05-05 | AC118: 2020-12-25 | AE118: 2020-12-22
A119: 2021.01 | B119: PAUS2016259 | C119: 发明 | D119: PCT国家阶段 | E119: 按字数算：中-英：16752字 | F119: 新申请 | H119: B | L119: C3级 | M119: =16752/1000*0.16 -> 2.68032 | P119: 邹孟达 | Q119: 孔丽霞 | R119: OPPO广东移动通信有限公司(null) | S119: OPPO广东移动通信有限公司(null) | V119: 2020-12-21
A120: 2021.01 | B120: PAUS2016267 | C120: 发明 | D120: PCT国家阶段 | E120: 按字数算：中-英：17682字 | F120: 新申请 | H120: B | L120: C3级 | M120: =17682/1000*0.16 -> 2.82912 | P120: 邹孟达 | Q120: 孔丽霞 | R120: OPPO广东移动通信有限公司(null) | S120: OPPO广东移动通信有限公司(null) | V120: 2020-12-24
A121: 2021.01 | B121: PAIN1510538 | C121: 发明 | D121: PCT国家阶段 | F121: OA答辩校核 | H121: A | L121: A1级 | M121: 0.2 | P121: 李莉 | Q121: 程利 | R121: 惠州市华阳光学技术有限公司 | S121: 惠州市华阳光学技术有限公司 | T121: 2021-01-21 | V121: 2021-01-21 | W121: 专利 | X121: 一通 | Z121: 完成 | AA121: 一种液晶组合物 | AB121: 2015-03-25
A122: 2021.01 | B122: PAEPO1912676 | C122: 发明 | D122: 普通新申请 | E122: 上月未算、不分案 | F122: 分案评估 | L122: A1级 | M122: 0.1 | P122: 李莉 | R122: OPPO广东移动通信有限公司 | S122: OPPO广东移动通信有限公司 | T122: 2020-12-19 | U122: 2020-12-19 | V122: 2020-12-02 | W122: 专利 | X122: 维持 | Y122: 不分案 | Z122: 完成 | AA122: 图像处理方法、装置、存储介质及电子设备 | AB122: 2019-05-27 | AC122: 2020-12-03 | AE122: 2020-12-02
A123: 2021.01 | B123: PAEPO1813100 | C123: 发明 | D123: 普通新申请 | E123: 上月未算 | F123: 欧洲案答辩 | H123: A | I123: 实质 | L123: A1级 | M123: 1.5 | P123: 李莉 | Q123: 程利 | R123: OPPO广东移动通信有限公司 | S123: OPPO广东移动通信有限公司 | T123: 2020-12-23 | U123: 2020-12-21 | V123: 2020-12-10 | W123: 专利 | X123: 一通 | Y123: 2OA，延期1次，分析+答辩 | Z123: 完成 | AA123: 一种摄像头组件、移动终端及其摄像头组件的控制方法 | AB123: 2018-07-20 | AC123: 2020-12-15 | AE123: 2020-12-10
A124: 2021.01 | B124: PACN2013078 | C124: 发明 | D124: 普通新申请 | E124: 绩效已算 | F124: 新申请 | H124: B | L124: B1级 | M124: 0 | P124: 陈晨曦 | Q124: 李姣 | R124: 深圳市商汤科技有限公司 | S124: 上海商汤科技开发有限公司 | T124: 2021-01-26 | U124: 2021-01-26T16:32:11.173 | V124: 2020-07-30T14:26:27.770 | W124: 专利 | X124: 受理 | Y124: 递交时限要求：2020.8.7 | Z124: 完成 | AA124: 兴趣分析方法和相关装置、设备 | AB124: 2020-06-28 | AC124: 2020-07-27 | AD124: 2020-07-27 | AE124: 2020-07-24T15:33:19.080
A125: 2021.01 | B125: PACN2017241 | C125: 发明 | D125: 普通新申请 | F125: 新申请 | H125: A | L125: B1级 | M125: 1 | P125: 陈晨曦 | Q125: 李姣 | R125: 广州虎牙信息科技有限公司 | S125: 广州虎牙科技有限公司 | T125: 2021-01-26 | U125: 2021-01-26T10:30:08.260 | V125: 2021-01-25T11:20:16.957 | W125: 专利 | X125: 受理 | Z125: 完成 | AA125: 图片的标注方法以及相关装置、设备 | AB125: 2020-12-09 | AC125: 2021-01-06 | AD125: 2021-01-20 | AE125: 2021-01-07T17:59:11.933 | AG125: =V125-AC125 -> 19.47241848
A126: 2021.01 | B126: PACN2016122 | C126: 发明 | D126: 普通新申请 | F126: 新申请 | H126: B | L126: B1级 | M126: 1 | P126: 陈晨曦 | Q126: 杨超 | R126: 金东纸业（江苏）股份有限公司 | S126: 金东纸业（江苏）股份有限公司 | T126: 2021-01-06 | U126: 2021-01-06T16:18:24.860 | V126: 2020-12-31T17:36:28.590 | W126: 专利 | X126: 受理 | Y126: 要求递交期限：2021-01-29 | Z126: 完成 | AA126: 一种轮转机印刷用铜版纸及其制备方法 | AB126: 2020-11-03 | AC126: 2020-12-31 | AD126: 2020-12-31 | AE126: 2020-12-30T18:20:34.697 | AG126: =V126-AC126 -> 0.7336642361
A127: 2021.01 | B127: PACN2013156 | C127: 发明 | D127: 普通新申请 | E127: 绩效已算 | F127: 新申请 | H127: B | L127: B1级 | M127: 0 | P127: 陈晨曦 | Q127: 李姣 | R127: 深圳市商汤科技有限公司 | S127: 上海商汤科技开发有限公司 | T127: 2021-01-29 | U127: 2021-01-29T14:12:57.750 | V127: 2020-08-05T15:28:21.660 | W127: 专利 | X127: 受理 | Y127: 递交时限要求：2020.8.7 | Z127: 完成 | AA127: 课堂状态的评估方法和相关装置、设备 | AB127: 2020-07-01 | AC127: 2020-07-30 | AD127: 2020-07-30 | AE127: 2020-07-31T16:07:22.457
A128: 2021.01 | B128: PACN2012401 | C128: 发明 | D128: 普通新申请 | E128: 绩效已算 | F128: 新申请 | H128: B | L128: B1级 | M128: 0 | P128: 陈晨曦 | Q128: 杨超 | R128: 深南电路股份有限公司 | S128: 深南电路股份有限公司 | T128: 2021-01-12 | U128: 2021-01-11T17:34:56.450 | V128: 2020-06-23T19:08:16.110 | W128: 专利 | X128: 受理 | Z128: 完成 | AA128: 一种检测机构、系统以及方法 | AB128: 2020-05-22 | AC128: 2020-06-19 | AD128: 2020-06-13T10:37:45.063 | AE128: 2020-06-12T09:16:57.940 | AI128: 普通
A129: 2021.01 | B129: PACN2012816 | C129: 发明 | D129: 普通新申请 | E129: 绩效已算 | F129: 新申请 | H129: B | L129: B1级 | M129: 0 | P129: 陈晨曦 | Q129: 李姣 | R129: 深南电路股份有限公司 | S129: 深南电路股份有限公司 | T129: 2021-01-12 | U129: 2021-01-11T17:39:30.557 | V129: 2020-07-16T15:46:56.413 | W129: 专利 | X129: 受理 | Z129: 完成 | AA129: 一种印制线路板及其压合方法 | AB129: 2020-06-12 | AC129: 2020-07-15 | AD129: 2020-07-07T22:46:03.290 | AE129: 2020-07-03T14:31:58.200 | AI129: 普通
A130: 2021.01 | B130: PACN2016946 | C130: 发明 | D130: 普通新申请 | F130: 新申请 | H130: B | L130: B1级 | M130: 1 | P130: 陈晨曦 | Q130: 李姣 | R130: 广州虎牙信息科技有限公司 | S130: 广州虎牙科技有限公司 | T130: 2021-01-19 | U130: 2021-01-19T10:41:26.700 | V130: 2020-12-21T10:13:36.310 | W130: 专利 | X130: 受理 | Z130: 完成 | AA130: 图文混合显示方法以及相关装置、设备 | AB130: 2020-11-30 | AC130: 2020-12-18 | AD130: 2020-12-22 | AE130: 2020-12-15T17:04:30.997 | AG130: =V130-AC130 -> 3.426114699
A131: 2021.01 | B131: PACN1715186 | C131: 发明 | D131: 普通新申请 | F131: 处理审查意见 | G131: 二通 | H131: A | J131: 实质 | K131: 陈晨曦 | L131: B1级 | M131: 0.2 | P131: 陈晨曦 | Q131: 李姣 | R131: 深圳市优必选科技股份有限公司 | S131: 深圳市优必选科技有限公司 | T131: 2021-01-28 | U131: 2021-01-28T13:46:21.200 | V131: 2020-12-23T19:14:09.043 | W131: 专利 | X131: 二通 | Z131: 完成 | AA131: 机器人及其控制方法、具有存储功能的装置 | AD131: 2020-12-25 | AE131: 2020-12-23T17:21:12.663
A132: 2021.01 | B132: PACN1913275-加快 | C132: 发明 | D132: 普通新申请 | F132: 处理审查意见 | G132: 一通 | H132: B | I132: 实质 | L132: B1级 | M132: 0.5 | P132: 陈晨曦 | Q132: 李姣 | R132: 马上消费金融股份有限公司 | S132: 马上消费金融股份有限公司 | T132: 2021-01-21 | U132: 2021-01-21 | V132: 2020-12-14 | W132: 专利 | X132: 一通 | Z132: 完成 | AA132: 智能客服中开头语动态推荐的方法及相关装置 | AB132: 2019-06-24 | AD132: 2020-12-27 | AE132: 2020-12-14
A133: 2021.01 | B133: PACN1913161 | C133: 发明 | D133: 普通新申请 | F133: 处理审查意见 | G133: 二通 | H133: A | J133: 实质 | K133: 陈晨曦 | L133: B1级 | M133: 0.2 | P133: 陈晨曦 | Q133: 杨超 | R133: 深南电路股份有限公司 | S133: 深南电路股份有限公司 | T133: 2021-01-29 | U133: 2021-01-29T14:17:00.007 | V133: 2021-01-28T09:57:05.663 | W133: 专利 | X133: 二通 | Z133: 完成 | AA133: 线路板及其制造方法 | AB133: 2019-06-18 | AD133: 2021-01-22 | AE133: 2021-01-27T13:58:33.193
A134: 2021.01 | B134: PACN1816087 | C134: 发明 | D134: 普通新申请 | F134: 处理审查意见 | G134: 二通 | H134: B | J134: 实质 | K134: 陈晨曦 | L134: B1级 | M134: 0.2 | P134: 陈晨曦 | Q134: 李姣 | R134: 福建睿能电子有限公司 | S134: 福建睿能科技股份有限公司 | T134: 2021-01-26 | U134: 2021-01-25T17:52:37.683 | V134: 2021-01-07T17:15:49.130 | W134: 专利 | X134: 二通 | Z134: 完成 | AA134: 选针刀组件及其制备方法 | AB134: 2018-11-30 | AD134: 2020-12-30 | AE134: 2021-01-06T17:20:05.087 | AI134: 简单的检索，是否适合申请发明
A135: 2021.01 | B135: PACN2017563 | C135: 发明 | D135: 普通新申请 | F135: 内部检索 | L135: B1级 | M135: 0 | P135: 陈晨曦 | Q135: 李姣 | R135: 广州虎牙信息科技有限公司 | S135: 广州虎牙科技有限公司 | T135: 2021-01-27 | V135: 2021-01-27 | W135: 专利 | X135: 未递交 | Y135: 新申请返稿期限：2021-01-26 | Z135: 完成 | AA135: 一种移动设备基准性能衡量与应用方式 | AB135: 2020-12-22 | AC135: 2020-12-25 | AD135: 2020-12-25 | AE135: 2021-01-26
A136: 2021.01 | B136: PACN2017484 | C136: 发明 | D136: 普通新申请 | F136: 内部检索 | L136: B1级 | M136: 0 | P136: 陈晨曦 | Q136: 李姣 | R136: 广州虎牙信息科技有限公司 | S136: 广州虎牙科技有限公司 | T136: 2021-01-07 | V136: 2021-01-05 | W136: 专利 | X136: 未递交 | Y136: 新申请返稿期限：2021-01-12 | Z136: 完成 | AA136: 一种防分发拉流的防盗链方法及装置 | AB136: 2020-12-21 | AC136: 2020-12-24 | AD136: 2020-12-24 | AE136: 2021-01-04
A137: 2021.01 | B137: PACN2012818 | C137: 发明 | D137: 普通新申请 | F137: 主动补正 | H137: A | L137: B1级 | M137: 0 | P137: 陈晨曦 | Q137: 李姣 | R137: 深圳市商汤科技有限公司 | S137: 浙江商汤科技开发有限公司 | T137: 2021-01-28 | U137: 2021-01-28T15:41:53.017 | W137: 专利 | X137: 补正 | Z137: 完成 | AA137: 图像识别方法、监狱的点名方法及相关装置、设备 | AB137: 2020-06-12 | AD137: 2021-01-22
A138: 2021.01 | B138: PACN2015939 | C138: 发明 | D138: 普通新申请 | E138: 发客户超一月（CN/PCT首次） | F138: 新申请 | H138: B | L138: B1级 | M138: 1 | P138: 陈晨曦 | Q138: 杨超 | R138: 深南电路股份有限公司 | S138: 天芯互联科技有限公司 | U138: 2021-01-20T11:28:25.927 | V138: 2020-12-28T19:14:32.950 | W138: 专利 | X138: 未递交 | Z138: 递交中 | AA138: 芯片的封装方法和芯片的封装机构 | AB138: 2020-10-26 | AC138: 2020-12-17 | AD138: 2020-12-24 | AE138: 2020-12-24T17:26:04.957 | AG138: =V138-AC138 -> 11.80177025
A139: 2021.01 | B139: PACN1713070-结案 | C139: 发明 | D139: 普通新申请 | E139: 结案不计绩效 | F139: 处理审查意见 | G139: 三通 | H139: B | J139: 实质 | K139: 罗光乐 | L139: B1级 | M139: 0 | P139: 罗光乐 | Q139: 李姣 | R139: 深圳市华星光电技术有限公司 | S139: 武汉华星光电半导体显示技术有限公司 | T139: 2021-01-15T10:52:04.107 | V139: 2020-11-05T14:35:33.033 | W139: 专利 | X139: 结案 | Y139: 结案时处理状态：外部审核 | Z139: 结案 | AA139: 一种OLED柔性基板、OLED显示面板及制作方法 | AB139: 2017-07-24 | AD139: 2020-11-12 | AE139: 2020-11-05T10:36:55.080 | AI139: 产品与技术组-->RDL PJT 三通阶段放弃答复，该案结案
A140: 2021.01 | B140: PACN1712264-挖掘 | C140: 发明 | D140: 普通新申请 | F140: 处理审查意见 | G140: 二通 | H140: B | J140: 实质 | K140: 罗光乐 | L140: B1级 | M140: 0.2 | P140: 罗光乐 | Q140: 李姣 | R140: 韩勇、徐伟峰/深圳修啊科技有限公司 | S140: 韩勇,徐伟峰 | T140: 2021-01-12 | U140: 2021-01-12T17:15:51.277 | V140: 2020-12-16T10:49:32.903 | W140: 专利 | X140: 二通 | Z140: 完成 | AA140: 定性检测方法、服务器及具有存储功能的装置 | AB140: 2017-05-25 | AD140: 2020-11-28 | AE140: 2020-12-02T16:50:59.860 | AI140: 尽快向韩总请款，款到之后，我们这边才开始撰写。
A141: 2021.01 | B141: PACN2015908 | C141: 发明 | D141: 普通新申请 | F141: 新申请 | H141: B | L141: B1级 | M141: 1 | P141: 罗光乐 | Q141: 杨超 | R141: 深南电路股份有限公司 | S141: 深南电路股份有限公司 | T141: 2021-01-14 | U141: 2021-01-14T15:14:17.573 | V141: 2020-12-11T17:15:34.820 | W141: 专利 | X141: 受理 | Z141: 完成 | AA141: 一种电路板的层压方法及电路板 | AB141: 2020-10-23 | AC141: 2020-12-07 | AD141: 2020-11-30T18:04:15.310 | AE141: 2020-12-01T21:10:54.560 | AG141: =V141-AC141 -> 4.719153009 | AI141: 普通
A142: 2021.01 | B142: PACN1712261-挖掘 | C142: 发明 | D142: 普通新申请 | F142: 处理审查意见 | G142: 二通 | H142: B | J142: 实质 | K142: 罗光乐 | L142: B1级 | M142: 0.2 | P142: 罗光乐 | Q142: 李姣 | R142: 韩勇、徐伟峰/深圳修啊科技有限公司 | S142: 韩勇,徐伟峰 | T142: 2021-01-12 | U142: 2021-01-12T17:16:31.590 | V142: 2020-12-16T09:39:25.160 | W142: 专利 | X142: 二通 | Z142: 完成 | AA142: 定量检测方法、便携式终端及具有存储功能的装置 | AB142: 2017-05-25 | AD142: 2020-11-28 | AE142: 2020-12-02T15:27:58.270 | AI142: 尽快向韩总请款，款到之后，我们这边才开始撰写。
A143: 2021.01 | B143: PACN1917162 | C143: 发明 | D143: 普通新申请 | F143: 处理审查意见 | G143: 一通 | H143: A | I143: 实质 | L143: B1级 | M143: 0.5 | P143: 罗光乐 | Q143: 杨超 | R143: 中国科学院深圳先进技术研究院 | S143: 深圳先进技术研究院 | T143: 2021-01-04 | U143: 2021-01-04 | V143: 2020-12-31 | W143: 专利 | X143: 一通 | Z143: 完成 | AA143: 一种驱动装置和机械电子设备 | AB143: 2019-11-25 | AD143: 2020-10-07 | AE143: 2020-11-06
A144: 2021.01 | B144: PACN2016360 | C144: 发明 | D144: 普通新申请 | F144: 新申请 | H144: B | L144: B1级 | M144: 1 | P144: 罗光乐 | Q144: 杨超 | R144: 海能达通信股份有限公司 | S144: 海能达通信股份有限公司 | T144: 2021-01-30 | U144: 2021-01-29T16:19:39.327 | V144: 2020-12-11T17:25:04.557 | W144: 专利 | X144: 受理 | Y144: 转出备注：请转光乐处理 | Z144: 完成 | AA144: 一种数据线、智能终端以及电子设备 | AB144: 2020-11-11 | AC144: 2020-12-11 | AD144: 2020-11-26 | AE144: 2020-12-02T11:39:03.213 | AG144: =V144-AC144 -> 0.7257471875
A145: 2021.01 | B145: PACN2016846-结案 | C145: 发明 | D145: 普通新申请 | E145: 结案不计绩效 | F145: 新申请 | L145: B1级 | M145: 0 | P145: 罗光乐 | Q145: 杨超 | R145: 广东诗奇制造有限公司 | T145: 2021-01-14 | W145: 专利 | X145: 结案 | Z145: 结案 | AA145: 高气密性微型气泵 | AB145: 2020-11-26 | AD145: 2020-12-10 | AI145: 因客户要求先付款后提供交底书，先开卷以便请款，后续收到客户提供交底书后会上传
A146: 2021.01 | B146: PACN2120165 | C146: 实用新型 | D146: 普通新申请 | F146: 内部检索 | L146: B1级 | M146: 0 | P146: 罗光乐 | Q146: 李姣 | R146: 杭州涂鸦信息技术有限公司 | S146: 杭州涂鸦信息技术有限公司 | T146: 2021-01-12 | V146: 2021-01-12 | W146: 专利 | X146: 未递交 | Z146: 完成 | AA146: WIFI+BLE双模模组（CBU） | AB146: 2021-01-07 | AC146: 2021-01-12 | AD146: 2021-01-12 | AE146: 2021-01-11
A147: 2021.01 | B147: PACN2017084 | C147: 发明 | D147: 普通新申请 | F147: 新申请 | H147: A | L147: B1级 | M147: 1 | P147: 罗光乐 | Q147: 杨超 | R147: 杭州涂鸦信息技术有限公司 | S147: 杭州涂鸦信息技术有限公司 | T147: 2021-01-05 | U147: 2020-12-31T16:58:11.637 | V147: 2020-12-30T16:03:23.243 | W147: 专利 | X147: 受理 | Z147: 完成 | AA147: 一种软件运行的监测方法、系统及相关装置 | AB147: 2020-12-03 | AC147: 2020-12-25 | AD147: 2020-12-25 | AE147: 2020-12-21T13:45:07.127 | AG147: =V147-AC147 -> 5.669019016
A148: 2021.01 | B148: PACN2015138-OA答辩案件 | C148: 发明 | D148: 普通新申请 | F148: 处理审查意见 | G148: 二通 | H148: A | K148: 罗光乐 | L148: B1级 | M148: 0.2 | P148: 罗光乐 | Q148: 李姣 | R148: 深圳市网心科技有限公司 | S148: 深圳市网心科技有限公司 | T148: 2021-01-08 | U148: 2021-01-08T16:57:49.887 | V148: 2021-01-06 | W148: 专利 | X148: 二通 | Z148: 完成 | AA148: TCP流的多路复用系统及其方法、存储介质与终端 | AB148: 2020-09-15 | AD148: 2020-12-10 | AE148: 2021-01-05 | AI148: 转所进行OA答辩 绝限为9月21日
A149: 2021.01 | B149: PACN1815826 | C149: 发明 | D149: 普通新申请 | F149: 处理审查意见 | G149: 三通 | H149: C | K149: 刘茁 | L149: C2级 | M149: 0 | P149: 刘茁 | Q149: 李姣 | R149: 惠州TCL移动通信有限公司 | S149: 惠州TCL移动通信有限公司 | T149: 2021-01-07 | U149: 2021-01-07T14:33:51.990 | V149: 2021-01-04T11:26:02.893 | W149: 专利 | X149: 三通 | Z149: 完成 | AA149: 天线和电子设备 | AB149: 2018-12-17 | AD149: 2020-11-26 | AE149: 2020-12-31T18:03:09.737
A150: 2021.01 | B150: PACN1715173 | C150: 发明 | D150: 普通新申请 | F150: 处理审查意见 | G150: 二通 | H150: A | J150: 实质 | K150: 刘茁 | L150: C2级 | M150: 0.2 | P150: 刘茁 | Q150: 杨超 | R150: 深圳市优必选科技股份有限公司 | S150: 深圳市优必选科技有限公司 | T150: 2021-01-25 | U150: 2021-01-25T15:00:23.617 | V150: 2021-01-13T10:14:53.197 | W150: 专利 | X150: 二通 | Z150: 完成 | AA150: 降低强光源对驾驶影响的装置与方法 | AD150: 2020-12-11 | AE150: 2021-01-12T11:50:18.750
A151: 2021.01 | B151: PACN1711264 | C151: 发明 | D151: 普通新申请 | F151: 处理审查意见 | G151: 二通 | H151: B | J151: 实质 | K151: 刘茁 | L151: C2级 | M151: 0.2 | P151: 刘茁 | Q151: 李姣 | R151: 惠州TCL移动通信有限公司 | S151: 捷开通讯（深圳）有限公司 | T151: 2021-01-14 | U151: 2021-01-14T17:14:45.367 | V151: 2021-01-11T14:33:05.740 | W151: 专利 | X151: 二通 | Z151: 完成 | AA151: 一种密码管理方法、设备和具有存储功能的装置 | AB151: 2017-09-06 | AD151: 2020-12-11 | AE151: 2021-01-08T18:59:52.083
A152: 2021.01 | B152: PACN1813711 | C152: 发明 | D152: 普通新申请 | F152: 处理审查意见 | G152: 一通 | H152: B | I152: 实质 | L152: C2级 | M152: 0.5 | P152: 刘茁 | Q152: 李姣 | R152: 奇酷互联网络科技（深圳）有限公司 | S152: 奇酷互联网络科技（深圳）有限公司 | T152: 2021-01-06 | U152: 2021-01-06 | V152: 2021-01-06 | W152: 专利 | X152: 一通 | Y152: 转出类型：等待处理 转出备注：客户要求处理 | Z152: 完成 | AA152: 智能终端及其提醒模式选择方法、具有存储功能的装置 | AB152: 2018-08-17 | AD152: 2020-09-26 | AE152: 2021-01-05
A153: 2021.01 | B153: PACN1812437 | C153: 发明 | D153: 普通新申请 | F153: 处理审查意见 | G153: 二通 | H153: A | J153: 实质 | K153: 刘茁 | L153: C2级 | M153: 0.2 | P153: 刘茁 | Q153: 李姣 | R153: 深圳市华星光电技术有限公司 | S153: 武汉华星光电技术有限公司 | T153: 2021-01-29 | U153: 2021-01-29T10:05:54.627 | V153: 2021-01-28T14:58:39.990 | W153: 专利 | X153: 二通 | Z153: 完成 | AA153: 一种LTPS-TFT阵列基板及其制造方法和显示面板 | AB153: 2018-06-15 | AD153: 2021-01-02 | AE153: 2021-01-27T18:32:49.310 | AI153: 产品工程处-->产品工程部
A154: 2021.01 | B154: PACN2017686 | C154: 发明 | D154: 普通新申请 | F154: 新申请 | H154: B | L154: C2级 | M154: 1 | P154: 刘茁 | Q154: 杨超 | R154: 广东诗奇制造有限公司 | S154: 广东诗奇制造有限公司 | T154: 2021-01-26 | U154: 2021-01-26T10:05:24.870 | V154: 2021-01-21T17:23:50.843 | W154: 专利 | X154: 受理 | Z154: 完成 | AA154: 一种应用于咽喉的可穿戴理疗装置 | AB154: 2020-12-28 | AC154: 2021-01-20 | AD154: 2021-01-11 | AE154: 2021-01-14T19:39:44.160 | AG154: =V154-AC154 -> 1.724894016 | AI154: 由PACN2016846-结案新开
A155: 2021.01 | B155: PACN1710690 | C155: 发明 | D155: 普通新申请 | F155: 主动补正 | H155: B | K155: 刘茁 | L155: C2级 | M155: 0 | P155: 刘茁 | Q155: 李姣 | R155: 惠州TCL移动通信有限公司 | S155: 捷开通讯（深圳）有限公司 | T155: 2021-01-12 | U155: 2021-01-12T16:26:50.520 | W155: 专利 | X155: 授权 | Z155: 完成 | AA155: 实现壳体表面纹理的方法及终端 | AB155: 2017-05-09 | AD155: 2021-01-14 | AI155: 表面处理 实现金属装饰加工的一种方法-激光镭雕+PU+膜片+热转 新申请PACN1710690&PACN1710695（合案）
A156: 2021.01 | B156: PACN1713220 | C156: 发明 | D156: 普通新申请 | F156: 处理审查意见 | G156: 三通 | H156: C | K156: 刘茁 | L156: C2级 | M156: 0 | P156: 刘茁 | Q156: 杨超 | R156: 惠州TCL移动通信有限公司 | S156: 捷开通讯（深圳）有限公司 | T156: 2021-01-07 | U156: 2021-01-07T14:32:42.667 | V156: 2020-12-28T14:00:42.180 | W156: 专利 | X156: 三通 | Z156: 完成 | AA156: 智能终端及其自动翻页方法、具有存储功能的装置 | AB156: 2017-09-05 | AD156: 2020-11-23 | AE156: 2020-12-28T09:36:51.213
A157: 2021.01 | B157: PACN1911248 | C157: 发明 | D157: 普通新申请 | F157: 处理审查意见 | G157: 一通 | I157: 实质 | L157: C2级 | M157: 0.5 | P157: 刘茁 | Q157: 李姣 | R157: 奇酷互联网络科技（深圳）有限公司 | S157: 奇酷互联网络科技（深圳）有限公司 | T157: 2021-01-06 | U157: 2021-01-06 | V157: 2021-01-05 | W157: 专利 | X157: 一通 | Y157: 转出类型：等待处理 转出备注：客户要求处理 | Z157: 完成 | AA157: 抢红包的管理方法、系统、可读存储介质及智能终端 | AB157: 2019-03-20 | AD157: 2020-09-26 | AE157: 2021-01-05
A158: 2021.01 | B158: PACN1811432 | C158: 发明 | D158: 普通新申请 | F158: 处理审查意见 | G158: 二通 | H158: B | J158: 实质 | K158: 刘茁 | L158: C2级 | M158: 0.2 | P158: 刘茁 | Q158: 李姣 | R158: 宁波傲视智绘光电科技有限公司 | S158: 宁波傲视智绘光电科技有限公司 | T158: 2021-01-04 | U158: 2021-01-04T11:33:24.277 | V158: 2020-12-21T14:46:23.253 | W158: 专利 | X158: 二通 | Z158: 完成 | AA158: 一种激光雷达的校正系统和激光雷达测距装置 | AB158: 2018-04-10 | AD158: 2020-11-19 | AE158: 2020-12-21T12:18:47.450
A159: 2021.01 | B159: PACN1812434-结案 | C159: 发明 | D159: 普通新申请 | F159: 询问放弃或复审 | H159: A | J159: 实质 | K159: 刘茁 | L159: C2级 | M159: 0 | P159: 刘茁 | Q159: 杨超 | R159: 深圳市华星光电技术有限公司 | S159: 武汉华星光电技术有限公司 | T159: 2021-01-30T17:02:58.793 | V159: 2021-01-11T10:39:05.457 | W159: 专利 | X159: 结案 | Y159: 需要流程人员询问；发文客户后，客户如果回信放弃，则上传邮件，管制结案，如果提出复审，则新增提出复审， 不管结案或提出复审，上述动作完成后管制完成日 结案时处理状态：外部审核 | Z159: 结案 | AA159: 排气装置及干法刻蚀设备 | AB159: 2018-06-15 | AD159: 2020-11-14 | AE159: 2021-01-08T11:17:20.360 | AI159: 技术开发处-->阵列技术开发部 驳回阶段放弃，该案结案
A160: 2021.01 | B160: PACN1613786 | C160: 发明 | D160: 普通新申请 | F160: 处理审查意见 | G160: 三通 | H160: B | K160: 刘茁 | L160: C2级 | M160: 0 | P160: 刘茁 | Q160: 李姣 | R160: 惠州TCL移动通信有限公司 | S160: 捷开通讯（深圳）有限公司 | T160: 2021-01-14 | U160: 2021-01-14T17:21:17.293 | V160: 2021-01-14T16:39:29.950 | W160: 专利 | X160: 授权 | Z160: 完成 | AA160: 射频驱动编译调试的方法、客户端、服务端和存储装置 | AB160: 2016-12-20 | AD160: 2020-12-20 | AE160: 2021-01-14T12:15:33.743
A161: 2021.01 | B161: PACN1814914-加快 | C161: 发明 | D161: 普通新申请 | F161: 处理审查意见 | G161: 一通 | I161: 实质 | L161: C2级 | M161: 0.5 | P161: 刘茁 | Q161: 李姣 | R161: 马上消费金融股份有限公司 | S161: 马上消费金融股份有限公司 | T161: 2021-01-27 | U161: 2021-01-27T15:11:56.257 | V161: 2021-01-08 | W161: 专利 | X161: 一通 | Z161: 完成 | AA161: 图像翻拍检测方法及其模型的训练方法、支付方法及装置 | AB161: 2018-10-25 | AD161: 2021-01-02 | AE161: 2021-01-07
A162: 2021.01 | B162: PACN1911209 | C162: 发明 | D162: 普通新申请 | F162: 询问放弃或复审 | H162: B | K162: 刘茁 | L162: C2级 | M162: 0 | P162: 刘茁 | Q162: 李姣 | R162: 奇酷互联网络科技（深圳）有限公司 | S162: 奇酷互联网络科技（深圳）有限公司 | T162: 2021-01-26 | V162: 2021-01-08 | W162: 专利 | X162: 结案 | Y162: 请出具分析函给客户，谢谢！ 需要流程人员询问；发文客户后，客户如果回信放弃，则上传邮件，管制结案，如果提出复审，则新增提出复审， 不管结案或提出复审，上述动作完成后管制完成日 | Z162: 结案 | AA162: 进行拨号呼叫的方法、终端、可读存储介质及通讯终端 | AB162: 2019-03-20 | AD162: 2020-11-12 | AE162: 2021-01-08 | AI162: 驳回放弃复审
A163: 2021.01 | B163: PACN2017687 | C163: 发明 | D163: 普通新申请 | F163: 新申请 | H163: B | L163: C2级 | M163: 1 | P163: 刘茁 | Q163: 管自英 | R163: 广东诗奇制造有限公司 | S163: 广东诗奇制造有限公司 | T163: 2021-01-29 | U163: 2021-01-29T11:12:51.897 | V163: 2021-01-26T17:12:14.610 | W163: 专利 | X163: 受理 | Z163: 完成 | AA163: 一种血压检测手表 | AB163: 2020-12-28 | AC163: 2021-01-20 | AD163: 2021-01-11T10:35:36.197 | AE163: 2021-01-13T17:47:57.953 | AG163: =V163-AC163 -> 6.716835764 | AI163: 由PACN2016847-结案新开
A164: 2021.01 | B164: PACN1715556-结案 | C164: 发明 | D164: 普通新申请 | F164: 询问放弃或复审 | H164: B | J164: 实质 | K164: 刘茁 | L164: C2级 | M164: 0 | P164: 刘茁 | Q164: 李姣 | R164: 深圳市华星光电技术有限公司 | S164: TCL华星光电技术有限公司 | T164: 2021-01-28T18:18:07.733 | V164: 2020-12-11T15:51:45.540 | W164: 专利 | X164: 结案 | Y164: 需要流程人员询问；发文客户后，客户如果回信放弃，则上传邮件，管制结案，如果提出复审，则新增提出复审， 不管结案或提出复审，上述动作完成后管制完成日 结案时处理状态：外部审核 | Z164: 结案 | AA164: 偏光片及其制备方法、显示面板 | AB164: 2017-12-27 | AD164: 2020-10-03 | AE164: 2020-12-11T11:38:30.890 | AI164: 资源服务平台-->AC材料制程部 驳回阶段放弃复审，该案结案
A165: 2021.01 | B165: PACN1812143-加快 | C165: 发明 | D165: 普通新申请 | F165: 处理审查意见 | G165: 一通 | H165: A | I165: 实质 | L165: C2级 | M165: 0.5 | P165: 刘茁 | Q165: 李姣 | R165: 马上消费金融股份有限公司 | S165: 马上消费金融股份有限公司 | T165: 2021-01-20 | U165: 2021-01-20 | V165: 2020-12-14 | W165: 专利 | X165: 一通 | Z165: 完成 | AA165: 结算方法、结算装置、结算终端以及计算机存储介质 | AB165: 2018-06-01 | AD165: 2020-12-27 | AE165: 2020-12-10
A166: 2021.01 | B166: PACN1814961-加快 | C166: 发明 | D166: 普通新申请 | F166: 处理审查意见 | G166: 一通 | H166: A | I166: 实质 | L166: C2级 | M166: 0.5 | P166: 刘茁 | Q166: 李姣 | R166: 马上消费金融股份有限公司 | S166: 马上消费金融股份有限公司 | T166: 2021-01-25 | U166: 2021-01-25T16:17:48.187 | V166: 2021-01-06 | W166: 专利 | X166: 一通 | Z166: 完成 | AA166: 银行卡识别模型的训练方法、银行卡识别方法以及装置 | AB166: 2018-10-26 | AD166: 2021-01-03 | AE166: 2021-01-06
A167: 2021.01 | B167: PACN1916205 | C167: 发明 | D167: 普通新申请 | F167: 处理审查意见 | G167: 一通 | H167: A | I167: 实质 | L167: C2级 | M167: 0.5 | P167: 刘茁 | Q167: 李姣 | R167: 云谷（固安）科技有限公司 | S167: 昆山国显光电有限公司 | T167: 2021-01-04 | U167: 2021-01-04 | V167: 2020-12-08 | W167: 专利 | X167: 一通 | Z167: 完成 | AA167: OLED像素电路及显示装置 | AB167: 2019-10-15 | AC167: 2020-12-08 | AD167: 2019-10-25 | AE167: 2020-12-08
A168: 2021.01 | B168: PACN1813388-加快 | C168: 发明 | D168: 普通新申请 | E168: 发明一次OA授权 | L168: C2级 | M168: 0.2 | P168: 刘茁 | Q168: 李姣 | R168: 马上消费金融股份有限公司 | AA168: 多表数据的查询方法、装置、终端以及计算机存储介质
A169: 2021.01 | B169: PACN1812179-加快 | C169: 发明 | D169: 普通新申请 | E169: 发明一次OA授权 | L169: C2级 | M169: 0.2 | P169: 刘茁 | Q169: 李姣 | R169: 马上消费金融股份有限公司
A170: 2021.01 | B170: PACN1813915 | C170: 发明 | D170: 普通新申请 | F170: 处理审查意见 | G170: 二通 | H170: B | J170: 实质 | K170: 廖磊 | L170: C1级 | M170: 0.2 | P170: 廖磊 | Q170: 杨超 | R170: 惠州TCL移动通信有限公司 | S170: 惠州TCL移动通信有限公司 | T170: 2021-01-14 | U170: 2021-01-14T17:23:29.773 | V170: 2021-01-06T09:58:03.813 | W170: 专利 | X170: 补正 | Z170: 完成 | AA170: 调整语音首选项的方法、智能终端及具有存储功能的装置 | AB170: 2018-09-30 | AD170: 2020-12-09 | AE170: 2021-01-04T15:26:23.660
A171: 2021.01 | B171: PACN1812442-结案 | C171: 发明 | D171: 普通新申请 | F171: 询问放弃或复审 | H171: A | J171: 实质 | K171: 廖磊 | L171: C1级 | M171: 0 | P171: 廖磊 | Q171: 杨超 | R171: 深圳市华星光电技术有限公司 | S171: 武汉华星光电技术有限公司 | T171: 2021-01-05T10:13:11.183 | V171: 2020-11-20T16:56:43.307 | W171: 专利 | X171: 结案 | Y171: 需要流程人员询问；发文客户后，客户如果回信放弃，则上传邮件，管制结案，如果提出复审，则新增提出复审， 不管结案或提出复审，上述动作完成后管制完成日 结案时处理状态：外部审核 | Z171: 结案 | AA171: 显示面板蚀刻装置、制程单元及其流量控制方法 | AB171: 2018-06-15 | AD171: 2020-11-28 | AE171: 2020-11-19T09:19:14.160 | AI171: 阵列厂(旧)-->蚀刻部（旧） 驳回 阶段放弃，该案结案
A172: 2021.01 | B172: PACN2017429 | C172: 发明 | D172: 普通新申请 | F172: 内部检索 | L172: C1级 | M172: 0 | P172: 廖磊 | Q172: 李姣 | R172: 广州虎牙信息科技有限公司 | S172: 广州虎牙科技有限公司 | T172: 2021-01-25 | V172: 2021-01-22 | W172: 专利 | X172: 未递交 | Y172: 初稿期限：2021-01-07 | Z172: 完成 | AA172: 基于英雄、技能检测的游戏直播实时弹幕不遮挡技术 | AB172: 2020-12-16 | AC172: 2020-12-22 | AD172: 2020-12-19 | AE172: 2021-01-22
A173: 2021.01 | B173: PACN2012828 | C173: 发明 | D173: 普通新申请 | E173: 绩效已算 | F173: 新申请 | H173: A | L173: C1级 | M173: 0 | P173: 廖磊 | Q173: 李姣 | R173: 深南电路股份有限公司 | S173: 深南电路股份有限公司 | T173: 2021-01-14 | U173: 2021-01-14T15:59:05.613 | V173: 2020-07-15T18:34:28.573 | W173: 专利 | X173: 受理 | Z173: 完成 | AA173: 印刷线路板的制作方法及印刷电路板 | AB173: 2020-06-12 | AC173: 2020-07-15 | AD173: 2020-07-07T22:44:22.460 | AE173: 2020-07-03T15:22:08.657 | AI173: 普通
A174: 2021.01 | B174: PACN2020082 | C174: 实用新型 | D174: 普通新申请 | F174: 补正 | H174: B | L174: C1级 | M174: 0 | P174: 廖磊 | Q174: 杨超 | R174: 湖南交工智能技术有限公司 | S174: 湖南交工智能技术有限公司 | T174: 2021-01-22 | U174: 2021-01-22T09:40:38.063 | W174: 专利 | X174: 补正 | Z174: 完成 | AA174: 无人机、桥梁裂缝数据检测方法及存储介质 | AB174: 2020-01-09 | AD174: 2021-01-02
A175: 2021.01 | B175: PACN2017568 | C175: 发明 | D175: 普通新申请 | F175: 内部检索 | L175: C1级 | M175: 0 | P175: 廖磊 | Q175: 李姣 | R175: 广州虎牙信息科技有限公司 | S175: 广州虎牙科技有限公司 | T175: 2021-01-12 | V175: 2021-01-06 | W175: 专利 | X175: 未递交 | Y175: 新申请返稿期限：2021-01-26 | Z175: 完成 | AA175: 一种基于礼物分成的第三方直播插件工具收费方式 | AB175: 2020-12-22 | AC175: 2020-12-25 | AD175: 2020-12-25 | AE175: 2021-01-06
A176: 2021.01 | B176: PACN2013328-TS | C176: 发明 | D176: 普通新申请 | F176: 补正 | H176: A | L176: C1级 | M176: 0 | P176: 廖磊 | Q176: 李姣 | R176: 安克创新科技股份有限公司 | S176: 深圳海翼智新科技有限公司 | T176: 2021-01-22 | U176: 2021-01-22T09:47:41.967 | W176: 专利 | X176: 补正 | Y176: 工程师补正：权要序号错误，形式问题不通知客户。 | Z176: 完成 | AA176: 门铃摄像头装置及取电控制方法 | AB176: 2020-07-07 | AD176: 2021-02-11 | AI176: 指定代理人：廖磊
A177: 2021.01 | B177: PACN2017639 | C177: 发明 | D177: 普通新申请 | F177: 内部检索 | L177: C1级 | M177: 0 | P177: 廖磊 | Q177: 李姣 | R177: 广州虎牙信息科技有限公司 | S177: 广州虎牙科技有限公司 | T177: 2021-01-28 | V177: 2021-01-22 | W177: 专利 | X177: 未递交 | Y177: 新申请返稿期限：2021-02-24 | Z177: 完成 | AA177: 一种基于全量mock实现的响应噪音自动识别方法及装置 | AB177: 2020-12-24 | AC177: 2020-12-29 | AD177: 2020-12-27 | AE177: 2021-01-22
A178: 2021.01 | B178: PACN1413396-ZX | C178: 发明 | D178: 普通新申请 | F178: 处理审查意见 | G178: 三通 | H178: B | J178: 非实质 | K178: 黄慧菊 | L178: D3级 | M178: 0 | P178: 黄慧菊 | Q178: 李姣 | R178: 惠州TCL移动通信有限公司 | S178: 惠州TCL移动通信有限公司 | T178: 2021-01-14 | U178: 2021-01-14T17:23:47.340 | V178: 2021-01-08T14:36:19.550 | W178: 专利 | X178: 三通 | Z178: 完成 | AA178: 终端控制方法及附属设备 | AB178: 2014-12-08 | AD178: 2020-12-04 | AE178: 2021-01-06T18:28:04.240
A179: 2021.01 | B179: PACN1814578 | C179: 发明 | D179: 普通新申请 | F179: 处理审查意见 | G179: 一通 | H179: C | I179: 实质 | L179: D3级 | M179: 0.5 | P179: 黄慧菊 | Q179: 李姣 | R179: 惠州TCL移动通信有限公司 | S179: 惠州TCL移动通信有限公司 | T179: 2021-01-14 | U179: 2021-01-14 | V179: 2021-01-07 | W179: 专利 | X179: 实审 | Y179: 转出备注：姣姐，麻烦您转给谢静 | Z179: 完成 | AA179: 一种智能终端图像转换的方法、智能终端及存储装置 | AB179: 2018-11-06 | AD179: 2020-10-24 | AE179: 2021-01-05
A180: 2021.01 | B180: PACN2013750 | C180: 发明 | D180: 普通新申请 | E180: 10月绩效已算 | F180: 新申请 | H180: C | L180: D3级 | M180: 0 | P180: 黄慧菊 | Q180: 李姣 | R180: 深南电路股份有限公司 | S180: 深南电路股份有限公司 | T180: 2021-01-12 | U180: 2021-01-12T16:15:23.993 | V180: 2020-10-12T18:31:29.950 | W180: 专利 | X180: 受理 | Z180: 完成 | AA180: 一种工件感应机构、感测装置及抓取设备 | AB180: 2020-07-17 | AC180: 2020-08-19 | AD180: 2020-08-12 | AE180: 2020-09-08T16:30:17.383 | AI180: 重要
A181: 2021.01 | B181: PACN2017565 | C181: 发明 | D181: 普通新申请 | F181: 内部检索 | L181: D3级 | M181: 0 | P181: 黄慧菊 | R181: 广州虎牙信息科技有限公司 | S181: 广州虎牙科技有限公司 | T181: 2021-01-27 | V181: 2021-01-22 | W181: 专利 | X181: 未递交 | Y181: 新申请返稿期限：2021-01-26 | Z181: 完成 | AA181: 一种基于软件的精确网络授时及误差校正方法 | AB181: 2020-12-22 | AC181: 2020-12-25 | AD181: 2020-12-25 | AE181: 2021-01-22
A182: 2021.01 | B182: PACN2017067 | C182: 发明 | D182: 普通新申请 | F182: 新申请 | H182: A | L182: D3级 | M182: 1 | P182: 黄慧菊 | Q182: 杨超 | R182: 深圳市网心科技有限公司 | S182: 深圳市迅雷网文化有限公司 | T182: 2021-01-28 | U182: 2021-01-28T16:06:27.537 | V182: 2020-12-28T09:21:52.033 | W182: 专利 | X182: 受理 | Z182: 完成 | AA182: 一种图形验证码的校验方法及其相关装置 | AB182: 2020-12-03 | AC182: 2020-12-30 | AD182: 2020-12-17 | AE182: 2020-12-11T19:51:09.330 | AG182: =V182-AC182 -> -1.609814433
A183: 2021.01 | B183: PACN2014088 | C183: 发明 | D183: 普通新申请 | E183: 10月绩效已算 | F183: 新申请 | H183: A | L183: D3级 | M183: 0 | P183: 黄慧菊 | Q183: 杨超 | R183: 深南电路股份有限公司 | S183: 深南电路股份有限公司 | T183: 2021-01-12 | U183: 2021-01-12T16:09:22.043 | V183: 2020-09-30T18:34:20.083 | W183: 专利 | X183: 受理 | Z183: 完成 | AA183: 一种分板装置及分板设备 | AB183: 2020-07-31 | AC183: 2020-09-07 | AD183: 2020-08-31T18:31:15.350 | AE183: 2020-09-15T14:35:29.640 | AI183: 重要
A184: 2021.01 | B184: PACN1613181 | C184: 发明 | D184: 普通新申请 | F184: 处理审查意见 | G184: 四通 | H184: B | K184: 黄慧菊 | L184: D3级 | M184: 0 | P184: 黄慧菊 | Q184: 杨超 | R184: 惠州TCL移动通信有限公司 | S184: 惠州TCL移动通信有限公司 | T184: 2021-01-14 | U184: 2021-01-14T17:22:49.660 | V184: 2021-01-11T14:36:21.130 | W184: 专利 | X184: 四通 | Z184: 完成 | AA184: 一种消息分析方法及可消息分析的智能终端 | AB184: 2016-09-02 | AD184: 2020-12-12 | AE184: 2021-01-07T18:40:59.523 | AI184: 由JSCN1610057-结案 新增开.
A185: 2021.01 | B185: PACN2015909 | C185: 发明 | D185: 普通新申请 | F185: 新申请 | H185: B | L185: D3级 | M185: 1 | P185: 黄慧菊 | Q185: 杨超 | R185: 深南电路股份有限公司 | S185: 深南电路股份有限公司 | T185: 2021-01-14 | U185: 2021-01-14T17:13:06.317 | V185: 2020-12-07T18:36:23.497 | W185: 专利 | X185: 受理 | Z185: 完成 | AA185: 一种真空腔体的加工方法及线路板 | AB185: 2020-10-23 | AC185: 2020-12-07 | AD185: 2020-11-30T18:08:17.723 | AE185: 2020-11-30T14:13:56.057 | AG185: =V185-AC185 -> 0.775271956 | AI185: 普通
A186: 2021.01 | B186: PACN1813070 | C186: 发明 | D186: 普通新申请 | E186: 补正 | F186: 处理审查意见 | H186: A | J186: 实质 | K186: 黄慧菊 | L186: D3级 | M186: 0 | P186: 黄慧菊 | Q186: 李姣 | R186: 深圳市先河系统技术有限公司 | S186: 深圳市先河系统技术有限公司 | T186: 2021-01-06 | U186: 2021-01-06T14:44:19.277 | W186: 专利 | X186: 实审 | Z186: 完成 | AA186: 网络寻址方法、数据编辑方法、装置及存储介质 | AB186: 2018-07-19 | AD186: 2021-02-06T11:26:32.807
A187: 2021.01 | B187: PACN1714193 | C187: 发明 | D187: 普通新申请 | E187: 发客户超一月（CN/PCT首次） | F187: 处理审查意见 | G187: 一通 | H187: A | I187: 实质 | L187: D3级 | M187: 0.5 | P187: 黄慧菊 | Q187: 李姣 | R187: 海能达通信股份有限公司 | S187: 海能达通信股份有限公司 | V187: 2020-12-14T18:20:30.613 | W187: 专利 | X187: 一通 | Z187: 外部审核 | AA187: 信道配置方法、基站以及可读存储介质 | AB187: 2017-09-30 | AD187: 2020-11-26 | AE187: 2020-11-02T10:15:46.597
A188: 2021.01 | B188: PACN1713944 | C188: 发明 | D188: 普通新申请 | E188: 12月绩效已算发客户超一月（CN/PCT首次） | F188: 处理审查意见 | G188: 一通 | H188: A | I188: 实质 | L188: D3级 | M188: 0 | P188: 黄慧菊 | Q188: 李姣 | R188: 海能达通信股份有限公司 | S188: 海能达通信股份有限公司 | V188: 2020-11-24 | W188: 专利 | X188: 一通 | Z188: 外部审核 | AA188: 数字对讲机在线检测方法、数字对讲机和存储装置 | AB188: 2017-09-06 | AD188: 2020-12-04 | AE188: 2020-11-05
A189: 2021.01 | B189: PACN2017155 | C189: 发明 | D189: 普通新申请 | E189: 发客户超一月（CN/PCT首次） | F189: 新申请 | H189: B | L189: D3级 | M189: 1 | P189: 黄慧菊 | Q189: 李姣 | R189: 深圳市网心科技有限公司 | S189: 深圳市网心科技有限公司 | V189: 2020-12-30T09:19:53.843 | W189: 专利 | X189: 未递交 | Y189: 本月递交完毕 转出备注：请转黄慧菊处理 | Z189: 外部审核 | AA189: 一种基于windows内核有线网无感知网络桥接的方法 | AB189: 2020-12-07 | AC189: 2020-12-31 | AD189: 2020-12-21 | AE189: 2020-12-21T17:38:42.173 | AG189: =V189-AC189 -> -0.6111823727
A190: 2021.01 | B190: PACN2017156 | C190: 发明 | D190: 普通新申请 | E190: 发客户超一月（CN/PCT首次） | F190: 新申请 | H190: B | L190: D3级 | M190: 1 | P190: 黄慧菊 | Q190: 李姣 | R190: 深圳市网心科技有限公司 | S190: 深圳市网心科技有限公司 | V190: 2020-12-30T09:49:32.193 | W190: 专利 | X190: 未递交 | Y190: 本月递交 转出备注：请转黄慧菊处理 | Z190: 外部审核 | AA190: 一种基于windows内核无线网无感知网络桥接的方法 | AB190: 2020-12-07 | AC190: 2020-12-31 | AD190: 2020-12-21 | AE190: 2020-12-24T15:42:08.050 | AG190: =V190-AC190 -> -0.5905996181
A191: 2021.01 | B191: PACN2017328 | C191: 发明 | D191: 普通新申请 | F191: 新申请 | H191: B | L191: C1级 | M191: 1 | P191: 杨飞 | Q191: 李姣 | R191: 惠州市华阳光学技术有限公司 | S191: 惠州市华阳光学技术有限公司 | T191: 2021-01-28 | U191: 2021-01-27T17:00:43.110 | V191: 2021-01-27T15:03:22.850 | W191: 专利 | X191: 受理 | Z191: 完成 | AA191: 光致变色材料 | AB191: 2020-12-11 | AC191: 2021-01-01 | AD191: 2020-12-25T17:25:54.907 | AE191: 2021-01-14T11:13:43.290 | AG191: =V191-AC191 -> 26.6273478
A192: 2021.01 | B192: PACN2016945 | C192: 发明 | D192: 普通新申请 | F192: 新申请 | H192: B | L192: C1级 | M192: 1 | P192: 杨飞 | Q192: 李姣 | R192: 广州虎牙信息科技有限公司 | S192: 广州虎牙科技有限公司 | T192: 2021-01-29 | U192: 2021-01-29T11:15:10.790 | V192: 2021-01-29T11:05:07.220 | W192: 专利 | X192: 受理 | Z192: 完成 | AA192: 视频画面移动缩放方法、装置、电子设备及可读存储介质 | AB192: 2020-11-30 | AC192: 2021-01-22 | AD192: 2021-02-02 | AE192: 2021-01-27T16:19:32.207 | AG192: =V192-AC192 -> 7.46188912
A193: 2021.01 | B193: PACN2015943 | C193: 发明 | D193: 普通新申请 | F193: 新申请 | H193: A | L193: C1级 | M193: 1 | P193: 杨飞 | Q193: 杨超 | R193: 深南电路股份有限公司 | S193: 深南电路股份有限公司 | T193: 2021-01-19 | U193: 2021-01-19T15:48:18.487 | V193: 2021-01-12T16:54:51.003 | W193: 专利 | X193: 受理 | Z193: 完成 | AA193: 一种电路板及其背钻加工方法、背钻系统 | AB193: 2020-10-26 | AC193: 2020-12-24 | AD193: 2020-12-23 | AE193: 2020-12-22T18:21:06.297 | AG193: =V193-AC193 -> 19.70475698 | AI193: 重要
A194: 2021.01 | B194: PACN1715171 | C194: 发明 | D194: 普通新申请 | F194: 处理审查意见 | G194: 一通 | H194: A | I194: 实质 | L194: C1级 | M194: 0.5 | P194: 杨飞 | Q194: 李姣 | R194: 深圳市优必选科技股份有限公司 | S194: 深圳市优必选科技有限公司 | T194: 2021-01-14 | U194: 2021-01-14 | V194: 2021-01-04 | W194: 专利 | X194: 实审 | Z194: 完成 | AA194: 机器人在运动区域的地图构建及定位方法 | AD194: 2020-10-03 | AE194: 2020-12-30
A195: 2021.01 | B195: PACN1812432 | C195: 发明 | D195: 普通新申请 | F195: 处理审查意见 | G195: 一通 | H195: A | I195: 实质 | L195: C1级 | M195: 0.5 | P195: 杨飞 | Q195: 杨超 | R195: 深圳市华星光电技术有限公司 | S195: 武汉华星光电技术有限公司 | T195: 2021-01-29 | U195: 2021-01-29T09:35:00.180 | V195: 2021-01-25T16:50:42.170 | W195: 专利 | X195: 实审 | Z195: 完成 | AA195: 一种彩膜基板以及显示面板 | AB195: 2018-06-15 | AD195: 2020-10-23 | AE195: 2021-01-20T18:05:46.607 | AI195: 产品工程处-->产品工程部
A196: 2021.01 | B196: PACN1811407 | C196: 发明 | D196: 普通新申请 | F196: 处理审查意见 | G196: 二通 | H196: B | J196: 实质 | K196: 杨飞 | L196: C1级 | M196: 0.2 | P196: 杨飞 | Q196: 李姣 | R196: 深圳市华星光电技术有限公司 | S196: 武汉华星光电技术有限公司 | T196: 2021-01-29 | U196: 2021-01-29T09:48:59.933 | V196: 2021-01-27T09:59:15.740 | W196: 专利 | X196: 二通 | Z196: 完成 | AA196: 荧光胶及其制备方法、背光模组 | AB196: 2018-04-08 | AD196: 2020-12-24 | AE196: 2021-01-26T16:43:50.413 | AI196: 品质中心-->项目品质部
A197: 2021.01 | B197: PACN2017714 | C197: 发明 | D197: 普通新申请 | F197: 内部检索 | L197: C1级 | M197: 0 | P197: 杨飞 | Q197: 李姣 | R197: 深南电路股份有限公司 | S197: 深南电路股份有限公司 | T197: 2021-01-22 | V197: 2021-01-15 | W197: 专利 | X197: 暂缓申请 | Z197: 完成 | AA197: 一种印制线路板介质层厚度均匀性的控制方法交底书 | AB197: 2020-12-26 | AC197: 2021-01-05 | AD197: 2020-12-29 | AE197: 2021-01-15 | AI197: 重要 该案需ipr进一步确认是否委案，暂停处理20210126
A198: 2021.01 | B198: PACN1815832 | C198: 发明 | D198: 普通新申请 | F198: 主动补正 | H198: C | J198: 实质 | K198: 杨飞 | L198: C1级 | M198: 0 | P198: 杨飞 | Q198: 管自英 | R198: 惠州TCL移动通信有限公司 | S198: 惠州TCL移动通信有限公司 | T198: 2021-01-26 | U198: 2021-01-26T10:51:31.517 | W198: 专利 | X198: 补正 | Z198: 完成 | AA198: 智能终端及其控制方法、具有存储功能的装置 | AB198: 2018-12-17 | AD198: 2021-02-05T10:40:04.173
A199: 2021.01 | B199: PACN1815820 | C199: 发明 | D199: 普通新申请 | F199: 主动补正 | H199: B | J199: 实质 | K199: 杨飞 | L199: C1级 | M199: 0 | P199: 杨飞 | Q199: 杨超 | R199: 惠州TCL移动通信有限公司 | S199: 惠州TCL移动通信有限公司 | T199: 2021-01-26 | U199: 2021-01-26T16:07:36.520 | W199: 专利 | X199: 补正 | Z199: 完成 | AA199: 一种天线及智能终端 | AB199: 2018-12-17 | AD199: 2021-01-28
A200: 2021.01 | B200: PACN1711276 | C200: 发明 | D200: 普通新申请 | E200: 发明一次OA授权 | K200: 杨飞 | L200: C1级 | M200: 0.2 | P200: 杨飞 | Q200: 杨超 | R200: 惠州TCL移动通信有限公司 | S200: 惠州TCL移动通信有限公司 | T200: 2021-01-28 | U200: 21-01 | Y200: 2017110673196 | Z200: 完成 | AA200: 智能移动终端及其播放音乐的方法、具有存储功能的装置
... 2050 more rows
